{"text_format":"3","workbook":"xlsx","n_sheets":4,"sheets":["РЕЗЮМЕ БЮДЖЕТ НАЧАЛО ГОДИНА","РЕЗЮМЕ НА МЕСЕЧНИТЕ РАЗХОДИ","РАЗБИВКА НА РАЗХОДИТЕ","ДАРЕНИЯ И СПОНСОРСТВА"],"not_rendered":{"images":1,"defined_names":15},"read":"whole","date_system":"1900"}

{"sheet":"РЕЗЮМЕ БЮДЖЕТ НАЧАЛО ГОДИНА","index":0,"n_rows":16,"n_cols":7,"rows_kept":16,"merged":[[1,1,1,4]]}
[]
[null,"ДЕЙСТВИТЕЛНИ СПРЯМО БЮДЖЕТНИ ОТ НАЧАЛОТО НА ГОДИНАТА",{"$nulls":3},"ГОДИНА",{"$f":"YEAR(TODAY())","v":2019}]
[null,"G/L код","Заглавие на сметката","Действителни","Бюджет","Оставащи в лв.","Оставащи %"]
[null,1000,"Реклама",{"$f":"SUMIF(РезюмеМесечниРазходи[G/L код],ТаблицаОтНачалотоНаГодината[[#This Row],[G/L код]],РезюмеМесечниРазходи[Общо])","v":{"v":0,"d":"0.00 лв."}},{"v":100000,"d":"100,000.00 лв."},{"$f":"IF(ТаблицаОтНачалотоНаГодината[[#This Row],[Бюджет]]=\"\",\"\",ТаблицаОтНачалотоНаГодината[[#This Row],[Бюджет]]-ТаблицаОтНачалотоНаГодината[[#This Row],[Действителни]])","v":{"v":100000,"d":"100,000.00 лв."}},{"$f":"IFERROR(ТаблицаОтНачалотоНаГодината[[#This Row],[Оставащи в лв.]]/ТаблицаОтНачалотоНаГодината[[#This Row],[Бюджет]],\"\")","v":{"v":1,"d":"100.00%"}}]
[null,2000,"Офис оборудване",{"$f":"SUMIF(РезюмеМесечниРазходи[G/L код],ТаблицаОтНачалотоНаГодината[[#This Row],[G/L код]],РезюмеМесечниРазходи[Общо])","v":{"v":0,"d":"0.00 лв."}},{"v":100000,"d":"100,000.00 лв."},{"$f":"IF(ТаблицаОтНачалотоНаГодината[[#This Row],[Бюджет]]=\"\",\"\",ТаблицаОтНачалотоНаГодината[[#This Row],[Бюджет]]-ТаблицаОтНачалотоНаГодината[[#This Row],[Действителни]])","v":{"v":100000,"d":"100,000.00 лв."}},{"$f":"IFERROR(ТаблицаОтНачалотоНаГодината[[#This Row],[Оставащи в лв.]]/ТаблицаОтНачалотоНаГодината[[#This Row],[Бюджет]],\"\")","v":{"v":1,"d":"100.00%"}}]
[null,3000,"Принтери",{"$f":"SUMIF(РезюмеМесечниРазходи[G/L код],ТаблицаОтНачалотоНаГодината[[#This Row],[G/L код]],РезюмеМесечниРазходи[Общо])","v":{"v":0,"d":"0.00 лв."}},{"v":100000,"d":"100,000.00 лв."},{"$f":"IF(ТаблицаОтНачалотоНаГодината[[#This Row],[Бюджет]]=\"\",\"\",ТаблицаОтНачалотоНаГодината[[#This Row],[Бюджет]]-ТаблицаОтНачалотоНаГодината[[#This Row],[Действителни]])","v":{"v":100000,"d":"100,000.00 лв."}},{"$f":"IFERROR(ТаблицаОтНачалотоНаГодината[[#This Row],[Оставащи в лв.]]/ТаблицаОтНачалотоНаГодината[[#This Row],[Бюджет]],\"\")","v":{"v":1,"d":"100.00%"}}]
[null,4000,"Разходи за сървър",{"$f":"SUMIF(РезюмеМесечниРазходи[G/L код],ТаблицаОтНачалотоНаГодината[[#This Row],[G/L код]],РезюмеМесечниРазходи[Общо])","v":{"v":0,"d":"0.00 лв."}},{"v":100000,"d":"100,000.00 лв."},{"$f":"IF(ТаблицаОтНачалотоНаГодината[[#This Row],[Бюджет]]=\"\",\"\",ТаблицаОтНачалотоНаГодината[[#This Row],[Бюджет]]-ТаблицаОтНачалотоНаГодината[[#This Row],[Действителни]])","v":{"v":100000,"d":"100,000.00 лв."}},{"$f":"IFERROR(ТаблицаОтНачалотоНаГодината[[#This Row],[Оставащи в лв.]]/ТаблицаОтНачалотоНаГодината[[#This Row],[Бюджет]],\"\")","v":{"v":1,"d":"100.00%"}}]
[null,5000,"Консумативи",{"$f":"SUMIF(РезюмеМесечниРазходи[G/L код],ТаблицаОтНачалотоНаГодината[[#This Row],[G/L код]],РезюмеМесечниРазходи[Общо])","v":{"v":0,"d":"0.00 лв."}},{"v":50000,"d":"50,000.00 лв."},{"$f":"IF(ТаблицаОтНачалотоНаГодината[[#This Row],[Бюджет]]=\"\",\"\",ТаблицаОтНачалотоНаГодината[[#This Row],[Бюджет]]-ТаблицаОтНачалотоНаГодината[[#This Row],[Действителни]])","v":{"v":50000,"d":"50,000.00 лв."}},{"$f":"IFERROR(ТаблицаОтНачалотоНаГодината[[#This Row],[Оставащи в лв.]]/ТаблицаОтНачалотоНаГодината[[#This Row],[Бюджет]],\"\")","v":{"v":1,"d":"100.00%"}}]
[null,6000,"Разходи за клиент",{"$f":"SUMIF(РезюмеМесечниРазходи[G/L код],ТаблицаОтНачалотоНаГодината[[#This Row],[G/L код]],РезюмеМесечниРазходи[Общо])","v":{"v":0,"d":"0.00 лв."}},{"v":25000,"d":"25,000.00 лв."},{"$f":"IF(ТаблицаОтНачалотоНаГодината[[#This Row],[Бюджет]]=\"\",\"\",ТаблицаОтНачалотоНаГодината[[#This Row],[Бюджет]]-ТаблицаОтНачалотоНаГодината[[#This Row],[Действителни]])","v":{"v":25000,"d":"25,000.00 лв."}},{"$f":"IFERROR(ТаблицаОтНачалотоНаГодината[[#This Row],[Оставащи в лв.]]/ТаблицаОтНачалотоНаГодината[[#This Row],[Бюджет]],\"\")","v":{"v":1,"d":"100.00%"}}]
[null,7000,"Компютри",{"$f":"SUMIF(РезюмеМесечниРазходи[G/L код],ТаблицаОтНачалотоНаГодината[[#This Row],[G/L код]],РезюмеМесечниРазходи[Общо])","v":{"v":0,"d":"0.00 лв."}},{"v":75000,"d":"75,000.00 лв."},{"$f":"IF(ТаблицаОтНачалотоНаГодината[[#This Row],[Бюджет]]=\"\",\"\",ТаблицаОтНачалотоНаГодината[[#This Row],[Бюджет]]-ТаблицаОтНачалотоНаГодината[[#This Row],[Действителни]])","v":{"v":75000,"d":"75,000.00 лв."}},{"$f":"IFERROR(ТаблицаОтНачалотоНаГодината[[#This Row],[Оставащи в лв.]]/ТаблицаОтНачалотоНаГодината[[#This Row],[Бюджет]],\"\")","v":{"v":1,"d":"100.00%"}}]
[null,8000,"Медицински план",{"$f":"SUMIF(РезюмеМесечниРазходи[G/L код],ТаблицаОтНачалотоНаГодината[[#This Row],[G/L код]],РезюмеМесечниРазходи[Общо])","v":{"v":0,"d":"0.00 лв."}},{"v":65000,"d":"65,000.00 лв."},{"$f":"IF(ТаблицаОтНачалотоНаГодината[[#This Row],[Бюджет]]=\"\",\"\",ТаблицаОтНачалотоНаГодината[[#This Row],[Бюджет]]-ТаблицаОтНачалотоНаГодината[[#This Row],[Действителни]])","v":{"v":65000,"d":"65,000.00 лв."}},{"$f":"IFERROR(ТаблицаОтНачалотоНаГодината[[#This Row],[Оставащи в лв.]]/ТаблицаОтНачалотоНаГодината[[#This Row],[Бюджет]],\"\")","v":{"v":1,"d":"100.00%"}}]
[null,9000,"Разходи за сграда",{"$f":"SUMIF(РезюмеМесечниРазходи[G/L код],ТаблицаОтНачалотоНаГодината[[#This Row],[G/L код]],РезюмеМесечниРазходи[Общо])","v":{"v":0,"d":"0.00 лв."}},{"v":125000,"d":"125,000.00 лв."},{"$f":"IF(ТаблицаОтНачалотоНаГодината[[#This Row],[Бюджет]]=\"\",\"\",ТаблицаОтНачалотоНаГодината[[#This Row],[Бюджет]]-ТаблицаОтНачалотоНаГодината[[#This Row],[Действителни]])","v":{"v":125000,"d":"125,000.00 лв."}},{"$f":"IFERROR(ТаблицаОтНачалотоНаГодината[[#This Row],[Оставащи в лв.]]/ТаблицаОтНачалотоНаГодината[[#This Row],[Бюджет]],\"\")","v":{"v":1,"d":"100.00%"}}]
[null,10000,"Маркетинг",{"$f":"SUMIF(РезюмеМесечниРазходи[G/L код],ТаблицаОтНачалотоНаГодината[[#This Row],[G/L код]],РезюмеМесечниРазходи[Общо])","v":{"v":0,"d":"0.00 лв."}},{"v":100000,"d":"100,000.00 лв."},{"$f":"IF(ТаблицаОтНачалотоНаГодината[[#This Row],[Бюджет]]=\"\",\"\",ТаблицаОтНачалотоНаГодината[[#This Row],[Бюджет]]-ТаблицаОтНачалотоНаГодината[[#This Row],[Действителни]])","v":{"v":100000,"d":"100,000.00 лв."}},{"$f":"IFERROR(ТаблицаОтНачалотоНаГодината[[#This Row],[Оставащи в лв.]]/ТаблицаОтНачалотоНаГодината[[#This Row],[Бюджет]],\"\")","v":{"v":1,"d":"100.00%"}}]
[null,11000,"Дарения",{"$f":"SUMIF(РезюмеМесечниРазходи[G/L код],ТаблицаОтНачалотоНаГодината[[#This Row],[G/L код]],РезюмеМесечниРазходи[Общо])","v":{"v":0,"d":"0.00 лв."}},{"v":250000,"d":"250,000.00 лв."},{"$f":"IF(ТаблицаОтНачалотоНаГодината[[#This Row],[Бюджет]]=\"\",\"\",ТаблицаОтНачалотоНаГодината[[#This Row],[Бюджет]]-ТаблицаОтНачалотоНаГодината[[#This Row],[Действителни]])","v":{"v":250000,"d":"250,000.00 лв."}},{"$f":"IFERROR(ТаблицаОтНачалотоНаГодината[[#This Row],[Оставащи в лв.]]/ТаблицаОтНачалотоНаГодината[[#This Row],[Бюджет]],\"\")","v":{"v":1,"d":"100.00%"}}]
[null,12000,"Спонсорства",{"$f":"SUMIF(РезюмеМесечниРазходи[G/L код],ТаблицаОтНачалотоНаГодината[[#This Row],[G/L код]],РезюмеМесечниРазходи[Общо])","v":{"v":0,"d":"0.00 лв."}},{"v":50000,"d":"50,000.00 лв."},{"$f":"IF(ТаблицаОтНачалотоНаГодината[[#This Row],[Бюджет]]=\"\",\"\",ТаблицаОтНачалотоНаГодината[[#This Row],[Бюджет]]-ТаблицаОтНачалотоНаГодината[[#This Row],[Действителни]])","v":{"v":50000,"d":"50,000.00 лв."}},{"$f":"IFERROR(ТаблицаОтНачалотоНаГодината[[#This Row],[Оставащи в лв.]]/ТаблицаОтНачалотоНаГодината[[#This Row],[Бюджет]],\"\")","v":{"v":1,"d":"100.00%"}}]
[null,"Общо",null,{"$f":"SUBTOTAL(109,ТаблицаОтНачалотоНаГодината[Действителни])","v":{"v":0,"d":"0.00 лв."}},{"$f":"SUBTOTAL(109,ТаблицаОтНачалотоНаГодината[Бюджет])","v":{"v":1140000,"d":"1,140,000.00 лв."}},{"$f":"SUBTOTAL(109,ТаблицаОтНачалотоНаГодината[Оставащи в лв.])","v":{"v":1140000,"d":"1,140,000.00 лв."}},{"$f":"ТаблицаОтНачалотоНаГодината[[#Totals],[Оставащи в лв.]]/ТаблицаОтНачалотоНаГодината[[#Totals],[Бюджет]]","v":{"v":1,"d":"100.00%"}}]

{"sheet":"РЕЗЮМЕ НА МЕСЕЧНИТЕ РАЗХОДИ","index":1,"n_rows":18,"n_cols":17,"rows_kept":18,"merged":[[1,1,1,16]]}
[]
[null,"РЕЗЮМЕ НА МЕСЕЧНИТЕ РАЗХОДИ"]
[null,"В тази клетка се намира сегментаторът, с който да филтрирате данните в \"Заглавия на сметките\".",null,{"$f":"DATEVALUE(\"1 ЯНУ\"&_ГОДИНА)","v":"2019-01-01"},{"$f":"DATEVALUE(\"1 ФЕВ\"&_ГОДИНА)","v":"2019-02-01"},{"$f":"DATEVALUE(\"1 МАР\"&_ГОДИНА)","v":"2019-03-01"},{"$f":"DATEVALUE(\"1 АПР\"&_ГОДИНА)","v":"2019-04-01"},{"$f":"DATEVALUE(\"1 МАЙ\"&_ГОДИНА)","v":"2019-05-01"},{"$f":"DATEVALUE(\"1 ЮНИ\"&_ГОДИНА)","v":"2019-06-01"},{"$f":"DATEVALUE(\"1 ЮЛИ\"&_ГОДИНА)","v":"2019-07-01"},{"$f":"DATEVALUE(\"1 АВГ\"&_ГОДИНА)","v":"2019-08-01"},{"$f":"DATEVALUE(\"1 СЕП\"&_ГОДИНА)","v":"2019-09-01"},{"$f":"DATEVALUE(\"1 ОКТ\"&_ГОДИНА)","v":"2019-10-01"},{"$f":"DATEVALUE(\"1 НОЕ\"&_ГОДИНА)","v":"2019-11-01"},{"$f":"DATEVALUE(\"1 ДЕК\"&_ГОДИНА)","v":"2019-12-01"}]
[{"$nulls":3},{"$f":"EOMONTH(D3,0)","v":"2019-01-31"},{"$f":"EOMONTH(E3,0)","v":"2019-02-28"},{"$f":"EOMONTH(F3,0)","v":"2019-03-31"},{"$f":"EOMONTH(G3,0)","v":"2019-04-30"},{"$f":"EOMONTH(H3,0)","v":"2019-05-31"},{"$f":"EOMONTH(I3,0)","v":"2019-06-30"},"2019-07-31","2019-08-31","2019-09-30","2019-10-31","2019-11-30","2019-12-31"]
[null,"G/L код","Заглавие на сметката","Януари","Февруари","Март","Април","Май","Юни","Юли","Август","Септември","Октомври","Ноември","Декември","Общо"," "]
[null,1000,"Реклама",{"$f":"SUMIFS(РазбивкаРазходи[Сума на чека],РазбивкаРазходи[G/L код],РезюмеМесечниРазходи[[#This Row],[G/L код]],РазбивкаРазходи[Дата на фактура],\">=\"&D$3,РазбивкаРазходи[Дата на фактура],\"<=\"&D$4)+SUMIFS(Други[Сума на чека],Други[G/L код],РезюмеМесечниРазходи[[#This Row],[G/L код]],Други[Дата на иницииране на искането за чек],\">=\"&DATEVALUE(РезюмеМесечниРазходи[[#Headers],[Януари]]&_ГОДИНА),Други[Дата на иницииране на искането за чек],\"<=\"&D$4)","v":{"v":0,"d":"0.00 лв."}},{"$f":"SUMIFS(РазбивкаРазходи[Сума на чека],РазбивкаРазходи[G/L код],РезюмеМесечниРазходи[[#This Row],[G/L код]],РазбивкаРазходи[Дата на фактура],\">=\"&E$3,РазбивкаРазходи[Дата на фактура],\"<=\"&E$4)+SUMIFS(Други[Сума на чека],Други[G/L код],РезюмеМесечниРазходи[[#This Row],[G/L код]],Други[Дата на иницииране на искането за чек],\">=\"&DATEVALUE(\"1.\"&РезюмеМесечниРазходи[[#Headers],[Февруари]]&_ГОДИНА),Други[Дата на иницииране на искането за чек],\"<=\"&E$4)","v":{"v":0,"d":"0.00 лв."}},{"$f":"SUMIFS(РазбивкаРазходи[Сума на чека],РазбивкаРазходи[G/L код],РезюмеМесечниРазходи[[#This Row],[G/L код]],РазбивкаРазходи[Дата на фактура],\">=\"&F$3,РазбивкаРазходи[Дата на фактура],\"<=\"&F$4)+SUMIFS(Други[Сума на чека],Други[G/L код],РезюмеМесечниРазходи[[#This Row],[G/L код]],Други[Дата на иницииране на искането за чек],\">=\"&DATEVALUE(\"1.\"&РезюмеМесечниРазходи[[#Headers],[Март]]&_ГОДИНА),Други[Дата на иницииране на искането за чек],\"<=\"&F$4)","v":{"v":0,"d":"0.00 лв."}},{"$f":"SUMIFS(РазбивкаРазходи[Сума на чека],РазбивкаРазходи[G/L код],РезюмеМесечниРазходи[[#This Row],[G/L код]],РазбивкаРазходи[Дата на фактура],\">=\"&G$3,РазбивкаРазходи[Дата на фактура],\"<=\"&G$4)+SUMIFS(Други[Сума на чека],Други[G/L код],РезюмеМесечниРазходи[[#This Row],[G/L код]],Други[Дата на иницииране на искането за чек],\">=\"&DATEVALUE(\"1.\"&РезюмеМесечниРазходи[[#Headers],[Април]]&_ГОДИНА),Други[Дата на иницииране на искането за чек],\"<=\"&G$4)","v":{"v":0,"d":"0.00 лв."}},{"$f":"SUMIFS(РазбивкаРазходи[Сума на чека],РазбивкаРазходи[G/L код],РезюмеМесечниРазходи[[#This Row],[G/L код]],РазбивкаРазходи[Дата на фактура],\">=\"&H$3,РазбивкаРазходи[Дата на фактура],\"<=\"&H$4)+SUMIFS(Други[Сума на чека],Други[G/L код],РезюмеМесечниРазходи[[#This Row],[G/L код]],Други[Дата на иницииране на искането за чек],\">=\"&DATEVALUE(\"1.\"&РезюмеМесечниРазходи[[#Headers],[Май]]&_ГОДИНА),Други[Дата на иницииране на искането за чек],\"<=\"&H$4)","v":{"v":0,"d":"0.00 лв."}},{"$f":"SUMIFS(РазбивкаРазходи[Сума на чека],РазбивкаРазходи[G/L код],РезюмеМесечниРазходи[[#This Row],[G/L код]],РазбивкаРазходи[Дата на фактура],\">=\"&I$3,РазбивкаРазходи[Дата на фактура],\"<=\"&I$4)+SUMIFS(Други[Сума на чека],Други[G/L код],РезюмеМесечниРазходи[[#This Row],[G/L код]],Други[Дата на иницииране на искането за чек],\">=\"&DATEVALUE(\"1.\"&РезюмеМесечниРазходи[[#Headers],[Юни]]&_ГОДИНА),Други[Дата на иницииране на искането за чек],\"<=\"&I$4)","v":{"v":0,"d":"0.00 лв."}},{"$f":"SUMIFS(РазбивкаРазходи[Сума на чека],РазбивкаРазходи[G/L код],РезюмеМесечниРазходи[[#This Row],[G/L код]],РазбивкаРазходи[Дата на фактура],\">=\"&J$3,РазбивкаРазходи[Дата на фактура],\"<=\"&J$4)+SUMIFS(Други[Сума на чека],Други[G/L код],РезюмеМесечниРазходи[[#This Row],[G/L код]],Други[Дата на иницииране на искането за чек],\">=\"&DATEVALUE(\"1.\"&РезюмеМесечниРазходи[[#Headers],[Юли]]&_ГОДИНА),Други[Дата на иницииране на искането за чек],\"<=\"&J$4)","v":{"v":0,"d":"0.00 лв."}},{"$f":"SUMIFS(РазбивкаРазходи[Сума на чека],РазбивкаРазходи[G/L код],РезюмеМесечниРазходи[[#This Row],[G/L код]],РазбивкаРазходи[Дата на фактура],\">=\"&K$3,РазбивкаРазходи[Дата на фактура],\"<=\"&K$4)+SUMIFS(Други[Сума на чека],Други[G/L код],РезюмеМесечниРазходи[[#This Row],[G/L код]],Други[Дата на иницииране на искането за чек],\">=\"&DATEVALUE(\"1.\"&РезюмеМесечниРазходи[[#Headers],[Август]]&_ГОДИНА),Други[Дата на иницииране на искането за чек],\"<=\"&K$4)","v":{"v":0,"d":"0.00 лв."}},{"$f":"SUMIFS(РазбивкаРазходи[Сума на чека],РазбивкаРазходи[G/L код],РезюмеМесечниРазходи[[#This Row],[G/L код]],РазбивкаРазходи[Дата на фактура],\">=\"&L$3,РазбивкаРазходи[Дата на фактура],\"<=\"&L$4)+SUMIFS(Други[Сума на чека],Други[G/L код],РезюмеМесечниРазходи[[#This Row],[G/L код]],Други[Дата на иницииране на искането за чек],\">=\"&DATEVALUE(\"1.\"&РезюмеМесечниРазходи[[#Headers],[Септември]]&_ГОДИНА),Други[Дата на иницииране на искането за чек],\"<=\"&L$4)","v":{"v":0,"d":"0.00 лв."}},{"$f":"SUMIFS(РазбивкаРазходи[Сума на чека],РазбивкаРазходи[G/L код],РезюмеМесечниРазходи[[#This Row],[G/L код]],РазбивкаРазходи[Дата на фактура],\">=\"&M$3,РазбивкаРазходи[Дата на фактура],\"<=\"&M$4)+SUMIFS(Други[Сума на чека],Други[G/L код],РезюмеМесечниРазходи[[#This Row],[G/L код]],Други[Дата на иницииране на искането за чек],\">=\"&DATEVALUE(\"1.\"&РезюмеМесечниРазходи[[#Headers],[Октомври]]&_ГОДИНА),Други[Дата на иницииране на искането за чек],\"<=\"&M$4)","v":{"v":0,"d":"0.00 лв."}},{"$f":"SUMIFS(РазбивкаРазходи[Сума на чека],РазбивкаРазходи[G/L код],РезюмеМесечниРазходи[[#This Row],[G/L код]],РазбивкаРазходи[Дата на фактура],\">=\"&N$3,РазбивкаРазходи[Дата на фактура],\"<=\"&N$4)+SUMIFS(Други[Сума на чека],Други[G/L код],РезюмеМесечниРазходи[[#This Row],[G/L код]],Други[Дата на иницииране на искането за чек],\">=\"&DATEVALUE(\"1.\"&РезюмеМесечниРазходи[[#Headers],[Ноември]]&_ГОДИНА),Други[Дата на иницииране на искането за чек],\"<=\"&N$4)","v":{"v":0,"d":"0.00 лв."}},{"$f":"SUMIFS(РазбивкаРазходи[Сума на чека],РазбивкаРазходи[G/L код],РезюмеМесечниРазходи[[#This Row],[G/L код]],РазбивкаРазходи[Дата на фактура],\">=\"&O$3,РазбивкаРазходи[Дата на фактура],\"<=\"&O$4)+SUMIFS(Други[Сума на чека],Други[G/L код],РезюмеМесечниРазходи[[#This Row],[G/L код]],Други[Дата на иницииране на искането за чек],\">=\"&DATEVALUE(\"1.\"&РезюмеМесечниРазходи[[#Headers],[Декември]]&_ГОДИНА),Други[Дата на иницииране на искането за чек],\"<=\"&O$4)","v":{"v":0,"d":"0.00 лв."}},{"$f":"SUM(РезюмеМесечниРазходи[[#This Row],[Януари]:[Декември]])","v":{"v":0,"d":"0.00 лв."}}]
[null,2000,"Офис оборудване",{"$f":"SUMIFS(РазбивкаРазходи[Сума на чека],РазбивкаРазходи[G/L код],РезюмеМесечниРазходи[[#This Row],[G/L код]],РазбивкаРазходи[Дата на фактура],\">=\"&D$3,РазбивкаРазходи[Дата на фактура],\"<=\"&D$4)+SUMIFS(Други[Сума на чека],Други[G/L код],РезюмеМесечниРазходи[[#This Row],[G/L код]],Други[Дата на иницииране на искането за чек],\">=\"&DATEVALUE(РезюмеМесечниРазходи[[#Headers],[Януари]]&_ГОДИНА),Други[Дата на иницииране на искането за чек],\"<=\"&D$4)","v":{"v":0,"d":"0.00 лв."}},{"$f":"SUMIFS(РазбивкаРазходи[Сума на чека],РазбивкаРазходи[G/L код],РезюмеМесечниРазходи[[#This Row],[G/L код]],РазбивкаРазходи[Дата на фактура],\">=\"&E$3,РазбивкаРазходи[Дата на фактура],\"<=\"&E$4)+SUMIFS(Други[Сума на чека],Други[G/L код],РезюмеМесечниРазходи[[#This Row],[G/L код]],Други[Дата на иницииране на искането за чек],\">=\"&DATEVALUE(\"1.\"&РезюмеМесечниРазходи[[#Headers],[Февруари]]&_ГОДИНА),Други[Дата на иницииране на искането за чек],\"<=\"&E$4)","v":{"v":0,"d":"0.00 лв."}},{"$f":"SUMIFS(РазбивкаРазходи[Сума на чека],РазбивкаРазходи[G/L код],РезюмеМесечниРазходи[[#This Row],[G/L код]],РазбивкаРазходи[Дата на фактура],\">=\"&F$3,РазбивкаРазходи[Дата на фактура],\"<=\"&F$4)+SUMIFS(Други[Сума на чека],Други[G/L код],РезюмеМесечниРазходи[[#This Row],[G/L код]],Други[Дата на иницииране на искането за чек],\">=\"&DATEVALUE(\"1.\"&РезюмеМесечниРазходи[[#Headers],[Март]]&_ГОДИНА),Други[Дата на иницииране на искането за чек],\"<=\"&F$4)","v":{"v":0,"d":"0.00 лв."}},{"$f":"SUMIFS(РазбивкаРазходи[Сума на чека],РазбивкаРазходи[G/L код],РезюмеМесечниРазходи[[#This Row],[G/L код]],РазбивкаРазходи[Дата на фактура],\">=\"&G$3,РазбивкаРазходи[Дата на фактура],\"<=\"&G$4)+SUMIFS(Други[Сума на чека],Други[G/L код],РезюмеМесечниРазходи[[#This Row],[G/L код]],Други[Дата на иницииране на искането за чек],\">=\"&DATEVALUE(\"1.\"&РезюмеМесечниРазходи[[#Headers],[Април]]&_ГОДИНА),Други[Дата на иницииране на искането за чек],\"<=\"&G$4)","v":{"v":0,"d":"0.00 лв."}},{"$f":"SUMIFS(РазбивкаРазходи[Сума на чека],РазбивкаРазходи[G/L код],РезюмеМесечниРазходи[[#This Row],[G/L код]],РазбивкаРазходи[Дата на фактура],\">=\"&H$3,РазбивкаРазходи[Дата на фактура],\"<=\"&H$4)+SUMIFS(Други[Сума на чека],Други[G/L код],РезюмеМесечниРазходи[[#This Row],[G/L код]],Други[Дата на иницииране на искането за чек],\">=\"&DATEVALUE(\"1.\"&РезюмеМесечниРазходи[[#Headers],[Май]]&_ГОДИНА),Други[Дата на иницииране на искането за чек],\"<=\"&H$4)","v":{"v":0,"d":"0.00 лв."}},{"$f":"SUMIFS(РазбивкаРазходи[Сума на чека],РазбивкаРазходи[G/L код],РезюмеМесечниРазходи[[#This Row],[G/L код]],РазбивкаРазходи[Дата на фактура],\">=\"&I$3,РазбивкаРазходи[Дата на фактура],\"<=\"&I$4)+SUMIFS(Други[Сума на чека],Други[G/L код],РезюмеМесечниРазходи[[#This Row],[G/L код]],Други[Дата на иницииране на искането за чек],\">=\"&DATEVALUE(\"1.\"&РезюмеМесечниРазходи[[#Headers],[Юни]]&_ГОДИНА),Други[Дата на иницииране на искането за чек],\"<=\"&I$4)","v":{"v":0,"d":"0.00 лв."}},{"$f":"SUMIFS(РазбивкаРазходи[Сума на чека],РазбивкаРазходи[G/L код],РезюмеМесечниРазходи[[#This Row],[G/L код]],РазбивкаРазходи[Дата на фактура],\">=\"&J$3,РазбивкаРазходи[Дата на фактура],\"<=\"&J$4)+SUMIFS(Други[Сума на чека],Други[G/L код],РезюмеМесечниРазходи[[#This Row],[G/L код]],Други[Дата на иницииране на искането за чек],\">=\"&DATEVALUE(\"1.\"&РезюмеМесечниРазходи[[#Headers],[Юли]]&_ГОДИНА),Други[Дата на иницииране на искането за чек],\"<=\"&J$4)","v":{"v":0,"d":"0.00 лв."}},{"$f":"SUMIFS(РазбивкаРазходи[Сума на чека],РазбивкаРазходи[G/L код],РезюмеМесечниРазходи[[#This Row],[G/L код]],РазбивкаРазходи[Дата на фактура],\">=\"&K$3,РазбивкаРазходи[Дата на фактура],\"<=\"&K$4)+SUMIFS(Други[Сума на чека],Други[G/L код],РезюмеМесечниРазходи[[#This Row],[G/L код]],Други[Дата на иницииране на искането за чек],\">=\"&DATEVALUE(\"1.\"&РезюмеМесечниРазходи[[#Headers],[Август]]&_ГОДИНА),Други[Дата на иницииране на искането за чек],\"<=\"&K$4)","v":{"v":0,"d":"0.00 лв."}},{"$f":"SUMIFS(РазбивкаРазходи[Сума на чека],РазбивкаРазходи[G/L код],РезюмеМесечниРазходи[[#This Row],[G/L код]],РазбивкаРазходи[Дата на фактура],\">=\"&L$3,РазбивкаРазходи[Дата на фактура],\"<=\"&L$4)+SUMIFS(Други[Сума на чека],Други[G/L код],РезюмеМесечниРазходи[[#This Row],[G/L код]],Други[Дата на иницииране на искането за чек],\">=\"&DATEVALUE(\"1.\"&РезюмеМесечниРазходи[[#Headers],[Септември]]&_ГОДИНА),Други[Дата на иницииране на искането за чек],\"<=\"&L$4)","v":{"v":0,"d":"0.00 лв."}},{"$f":"SUMIFS(РазбивкаРазходи[Сума на чека],РазбивкаРазходи[G/L код],РезюмеМесечниРазходи[[#This Row],[G/L код]],РазбивкаРазходи[Дата на фактура],\">=\"&M$3,РазбивкаРазходи[Дата на фактура],\"<=\"&M$4)+SUMIFS(Други[Сума на чека],Други[G/L код],РезюмеМесечниРазходи[[#This Row],[G/L код]],Други[Дата на иницииране на искането за чек],\">=\"&DATEVALUE(\"1.\"&РезюмеМесечниРазходи[[#Headers],[Октомври]]&_ГОДИНА),Други[Дата на иницииране на искането за чек],\"<=\"&M$4)","v":{"v":0,"d":"0.00 лв."}},{"$f":"SUMIFS(РазбивкаРазходи[Сума на чека],РазбивкаРазходи[G/L код],РезюмеМесечниРазходи[[#This Row],[G/L код]],РазбивкаРазходи[Дата на фактура],\">=\"&N$3,РазбивкаРазходи[Дата на фактура],\"<=\"&N$4)+SUMIFS(Други[Сума на чека],Други[G/L код],РезюмеМесечниРазходи[[#This Row],[G/L код]],Други[Дата на иницииране на искането за чек],\">=\"&DATEVALUE(\"1.\"&РезюмеМесечниРазходи[[#Headers],[Ноември]]&_ГОДИНА),Други[Дата на иницииране на искането за чек],\"<=\"&N$4)","v":{"v":0,"d":"0.00 лв."}},{"$f":"SUMIFS(РазбивкаРазходи[Сума на чека],РазбивкаРазходи[G/L код],РезюмеМесечниРазходи[[#This Row],[G/L код]],РазбивкаРазходи[Дата на фактура],\">=\"&O$3,РазбивкаРазходи[Дата на фактура],\"<=\"&O$4)+SUMIFS(Други[Сума на чека],Други[G/L код],РезюмеМесечниРазходи[[#This Row],[G/L код]],Други[Дата на иницииране на искането за чек],\">=\"&DATEVALUE(\"1.\"&РезюмеМесечниРазходи[[#Headers],[Декември]]&_ГОДИНА),Други[Дата на иницииране на искането за чек],\"<=\"&O$4)","v":{"v":0,"d":"0.00 лв."}},{"$f":"SUM(РезюмеМесечниРазходи[[#This Row],[Януари]:[Декември]])","v":{"v":0,"d":"0.00 лв."}}]
[null,3000,"Принтери",{"$f":"SUMIFS(РазбивкаРазходи[Сума на чека],РазбивкаРазходи[G/L код],РезюмеМесечниРазходи[[#This Row],[G/L код]],РазбивкаРазходи[Дата на фактура],\">=\"&D$3,РазбивкаРазходи[Дата на фактура],\"<=\"&D$4)+SUMIFS(Други[Сума на чека],Други[G/L код],РезюмеМесечниРазходи[[#This Row],[G/L код]],Други[Дата на иницииране на искането за чек],\">=\"&DATEVALUE(РезюмеМесечниРазходи[[#Headers],[Януари]]&_ГОДИНА),Други[Дата на иницииране на искането за чек],\"<=\"&D$4)","v":{"v":0,"d":"0.00 лв."}},{"$f":"SUMIFS(РазбивкаРазходи[Сума на чека],РазбивкаРазходи[G/L код],РезюмеМесечниРазходи[[#This Row],[G/L код]],РазбивкаРазходи[Дата на фактура],\">=\"&E$3,РазбивкаРазходи[Дата на фактура],\"<=\"&E$4)+SUMIFS(Други[Сума на чека],Други[G/L код],РезюмеМесечниРазходи[[#This Row],[G/L код]],Други[Дата на иницииране на искането за чек],\">=\"&DATEVALUE(\"1.\"&РезюмеМесечниРазходи[[#Headers],[Февруари]]&_ГОДИНА),Други[Дата на иницииране на искането за чек],\"<=\"&E$4)","v":{"v":0,"d":"0.00 лв."}},{"$f":"SUMIFS(РазбивкаРазходи[Сума на чека],РазбивкаРазходи[G/L код],РезюмеМесечниРазходи[[#This Row],[G/L код]],РазбивкаРазходи[Дата на фактура],\">=\"&F$3,РазбивкаРазходи[Дата на фактура],\"<=\"&F$4)+SUMIFS(Други[Сума на чека],Други[G/L код],РезюмеМесечниРазходи[[#This Row],[G/L код]],Други[Дата на иницииране на искането за чек],\">=\"&DATEVALUE(\"1.\"&РезюмеМесечниРазходи[[#Headers],[Март]]&_ГОДИНА),Други[Дата на иницииране на искането за чек],\"<=\"&F$4)","v":{"v":0,"d":"0.00 лв."}},{"$f":"SUMIFS(РазбивкаРазходи[Сума на чека],РазбивкаРазходи[G/L код],РезюмеМесечниРазходи[[#This Row],[G/L код]],РазбивкаРазходи[Дата на фактура],\">=\"&G$3,РазбивкаРазходи[Дата на фактура],\"<=\"&G$4)+SUMIFS(Други[Сума на чека],Други[G/L код],РезюмеМесечниРазходи[[#This Row],[G/L код]],Други[Дата на иницииране на искането за чек],\">=\"&DATEVALUE(\"1.\"&РезюмеМесечниРазходи[[#Headers],[Април]]&_ГОДИНА),Други[Дата на иницииране на искането за чек],\"<=\"&G$4)","v":{"v":0,"d":"0.00 лв."}},{"$f":"SUMIFS(РазбивкаРазходи[Сума на чека],РазбивкаРазходи[G/L код],РезюмеМесечниРазходи[[#This Row],[G/L код]],РазбивкаРазходи[Дата на фактура],\">=\"&H$3,РазбивкаРазходи[Дата на фактура],\"<=\"&H$4)+SUMIFS(Други[Сума на чека],Други[G/L код],РезюмеМесечниРазходи[[#This Row],[G/L код]],Други[Дата на иницииране на искането за чек],\">=\"&DATEVALUE(\"1.\"&РезюмеМесечниРазходи[[#Headers],[Май]]&_ГОДИНА),Други[Дата на иницииране на искането за чек],\"<=\"&H$4)","v":{"v":0,"d":"0.00 лв."}},{"$f":"SUMIFS(РазбивкаРазходи[Сума на чека],РазбивкаРазходи[G/L код],РезюмеМесечниРазходи[[#This Row],[G/L код]],РазбивкаРазходи[Дата на фактура],\">=\"&I$3,РазбивкаРазходи[Дата на фактура],\"<=\"&I$4)+SUMIFS(Други[Сума на чека],Други[G/L код],РезюмеМесечниРазходи[[#This Row],[G/L код]],Други[Дата на иницииране на искането за чек],\">=\"&DATEVALUE(\"1.\"&РезюмеМесечниРазходи[[#Headers],[Юни]]&_ГОДИНА),Други[Дата на иницииране на искането за чек],\"<=\"&I$4)","v":{"v":0,"d":"0.00 лв."}},{"$f":"SUMIFS(РазбивкаРазходи[Сума на чека],РазбивкаРазходи[G/L код],РезюмеМесечниРазходи[[#This Row],[G/L код]],РазбивкаРазходи[Дата на фактура],\">=\"&J$3,РазбивкаРазходи[Дата на фактура],\"<=\"&J$4)+SUMIFS(Други[Сума на чека],Други[G/L код],РезюмеМесечниРазходи[[#This Row],[G/L код]],Други[Дата на иницииране на искането за чек],\">=\"&DATEVALUE(\"1.\"&РезюмеМесечниРазходи[[#Headers],[Юли]]&_ГОДИНА),Други[Дата на иницииране на искането за чек],\"<=\"&J$4)","v":{"v":0,"d":"0.00 лв."}},{"$f":"SUMIFS(РазбивкаРазходи[Сума на чека],РазбивкаРазходи[G/L код],РезюмеМесечниРазходи[[#This Row],[G/L код]],РазбивкаРазходи[Дата на фактура],\">=\"&K$3,РазбивкаРазходи[Дата на фактура],\"<=\"&K$4)+SUMIFS(Други[Сума на чека],Други[G/L код],РезюмеМесечниРазходи[[#This Row],[G/L код]],Други[Дата на иницииране на искането за чек],\">=\"&DATEVALUE(\"1.\"&РезюмеМесечниРазходи[[#Headers],[Август]]&_ГОДИНА),Други[Дата на иницииране на искането за чек],\"<=\"&K$4)","v":{"v":0,"d":"0.00 лв."}},{"$f":"SUMIFS(РазбивкаРазходи[Сума на чека],РазбивкаРазходи[G/L код],РезюмеМесечниРазходи[[#This Row],[G/L код]],РазбивкаРазходи[Дата на фактура],\">=\"&L$3,РазбивкаРазходи[Дата на фактура],\"<=\"&L$4)+SUMIFS(Други[Сума на чека],Други[G/L код],РезюмеМесечниРазходи[[#This Row],[G/L код]],Други[Дата на иницииране на искането за чек],\">=\"&DATEVALUE(\"1.\"&РезюмеМесечниРазходи[[#Headers],[Септември]]&_ГОДИНА),Други[Дата на иницииране на искането за чек],\"<=\"&L$4)","v":{"v":0,"d":"0.00 лв."}},{"$f":"SUMIFS(РазбивкаРазходи[Сума на чека],РазбивкаРазходи[G/L код],РезюмеМесечниРазходи[[#This Row],[G/L код]],РазбивкаРазходи[Дата на фактура],\">=\"&M$3,РазбивкаРазходи[Дата на фактура],\"<=\"&M$4)+SUMIFS(Други[Сума на чека],Други[G/L код],РезюмеМесечниРазходи[[#This Row],[G/L код]],Други[Дата на иницииране на искането за чек],\">=\"&DATEVALUE(\"1.\"&РезюмеМесечниРазходи[[#Headers],[Октомври]]&_ГОДИНА),Други[Дата на иницииране на искането за чек],\"<=\"&M$4)","v":{"v":0,"d":"0.00 лв."}},{"$f":"SUMIFS(РазбивкаРазходи[Сума на чека],РазбивкаРазходи[G/L код],РезюмеМесечниРазходи[[#This Row],[G/L код]],РазбивкаРазходи[Дата на фактура],\">=\"&N$3,РазбивкаРазходи[Дата на фактура],\"<=\"&N$4)+SUMIFS(Други[Сума на чека],Други[G/L код],РезюмеМесечниРазходи[[#This Row],[G/L код]],Други[Дата на иницииране на искането за чек],\">=\"&DATEVALUE(\"1.\"&РезюмеМесечниРазходи[[#Headers],[Ноември]]&_ГОДИНА),Други[Дата на иницииране на искането за чек],\"<=\"&N$4)","v":{"v":0,"d":"0.00 лв."}},{"$f":"SUMIFS(РазбивкаРазходи[Сума на чека],РазбивкаРазходи[G/L код],РезюмеМесечниРазходи[[#This Row],[G/L код]],РазбивкаРазходи[Дата на фактура],\">=\"&O$3,РазбивкаРазходи[Дата на фактура],\"<=\"&O$4)+SUMIFS(Други[Сума на чека],Други[G/L код],РезюмеМесечниРазходи[[#This Row],[G/L код]],Други[Дата на иницииране на искането за чек],\">=\"&DATEVALUE(\"1.\"&РезюмеМесечниРазходи[[#Headers],[Декември]]&_ГОДИНА),Други[Дата на иницииране на искането за чек],\"<=\"&O$4)","v":{"v":0,"d":"0.00 лв."}},{"$f":"SUM(РезюмеМесечниРазходи[[#This Row],[Януари]:[Декември]])","v":{"v":0,"d":"0.00 лв."}}]
[null,4000,"Разходи за сървър",{"$f":"SUMIFS(РазбивкаРазходи[Сума на чека],РазбивкаРазходи[G/L код],РезюмеМесечниРазходи[[#This Row],[G/L код]],РазбивкаРазходи[Дата на фактура],\">=\"&D$3,РазбивкаРазходи[Дата на фактура],\"<=\"&D$4)+SUMIFS(Други[Сума на чека],Други[G/L код],РезюмеМесечниРазходи[[#This Row],[G/L код]],Други[Дата на иницииране на искането за чек],\">=\"&DATEVALUE(РезюмеМесечниРазходи[[#Headers],[Януари]]&_ГОДИНА),Други[Дата на иницииране на искането за чек],\"<=\"&D$4)","v":{"v":0,"d":"0.00 лв."}},{"$f":"SUMIFS(РазбивкаРазходи[Сума на чека],РазбивкаРазходи[G/L код],РезюмеМесечниРазходи[[#This Row],[G/L код]],РазбивкаРазходи[Дата на фактура],\">=\"&E$3,РазбивкаРазходи[Дата на фактура],\"<=\"&E$4)+SUMIFS(Други[Сума на чека],Други[G/L код],РезюмеМесечниРазходи[[#This Row],[G/L код]],Други[Дата на иницииране на искането за чек],\">=\"&DATEVALUE(\"1.\"&РезюмеМесечниРазходи[[#Headers],[Февруари]]&_ГОДИНА),Други[Дата на иницииране на искането за чек],\"<=\"&E$4)","v":{"v":0,"d":"0.00 лв."}},{"$f":"SUMIFS(РазбивкаРазходи[Сума на чека],РазбивкаРазходи[G/L код],РезюмеМесечниРазходи[[#This Row],[G/L код]],РазбивкаРазходи[Дата на фактура],\">=\"&F$3,РазбивкаРазходи[Дата на фактура],\"<=\"&F$4)+SUMIFS(Други[Сума на чека],Други[G/L код],РезюмеМесечниРазходи[[#This Row],[G/L код]],Други[Дата на иницииране на искането за чек],\">=\"&DATEVALUE(\"1.\"&РезюмеМесечниРазходи[[#Headers],[Март]]&_ГОДИНА),Други[Дата на иницииране на искането за чек],\"<=\"&F$4)","v":{"v":0,"d":"0.00 лв."}},{"$f":"SUMIFS(РазбивкаРазходи[Сума на чека],РазбивкаРазходи[G/L код],РезюмеМесечниРазходи[[#This Row],[G/L код]],РазбивкаРазходи[Дата на фактура],\">=\"&G$3,РазбивкаРазходи[Дата на фактура],\"<=\"&G$4)+SUMIFS(Други[Сума на чека],Други[G/L код],РезюмеМесечниРазходи[[#This Row],[G/L код]],Други[Дата на иницииране на искането за чек],\">=\"&DATEVALUE(\"1.\"&РезюмеМесечниРазходи[[#Headers],[Април]]&_ГОДИНА),Други[Дата на иницииране на искането за чек],\"<=\"&G$4)","v":{"v":0,"d":"0.00 лв."}},{"$f":"SUMIFS(РазбивкаРазходи[Сума на чека],РазбивкаРазходи[G/L код],РезюмеМесечниРазходи[[#This Row],[G/L код]],РазбивкаРазходи[Дата на фактура],\">=\"&H$3,РазбивкаРазходи[Дата на фактура],\"<=\"&H$4)+SUMIFS(Други[Сума на чека],Други[G/L код],РезюмеМесечниРазходи[[#This Row],[G/L код]],Други[Дата на иницииране на искането за чек],\">=\"&DATEVALUE(\"1.\"&РезюмеМесечниРазходи[[#Headers],[Май]]&_ГОДИНА),Други[Дата на иницииране на искането за чек],\"<=\"&H$4)","v":{"v":0,"d":"0.00 лв."}},{"$f":"SUMIFS(РазбивкаРазходи[Сума на чека],РазбивкаРазходи[G/L код],РезюмеМесечниРазходи[[#This Row],[G/L код]],РазбивкаРазходи[Дата на фактура],\">=\"&I$3,РазбивкаРазходи[Дата на фактура],\"<=\"&I$4)+SUMIFS(Други[Сума на чека],Други[G/L код],РезюмеМесечниРазходи[[#This Row],[G/L код]],Други[Дата на иницииране на искането за чек],\">=\"&DATEVALUE(\"1.\"&РезюмеМесечниРазходи[[#Headers],[Юни]]&_ГОДИНА),Други[Дата на иницииране на искането за чек],\"<=\"&I$4)","v":{"v":0,"d":"0.00 лв."}},{"$f":"SUMIFS(РазбивкаРазходи[Сума на чека],РазбивкаРазходи[G/L код],РезюмеМесечниРазходи[[#This Row],[G/L код]],РазбивкаРазходи[Дата на фактура],\">=\"&J$3,РазбивкаРазходи[Дата на фактура],\"<=\"&J$4)+SUMIFS(Други[Сума на чека],Други[G/L код],РезюмеМесечниРазходи[[#This Row],[G/L код]],Други[Дата на иницииране на искането за чек],\">=\"&DATEVALUE(\"1.\"&РезюмеМесечниРазходи[[#Headers],[Юли]]&_ГОДИНА),Други[Дата на иницииране на искането за чек],\"<=\"&J$4)","v":{"v":0,"d":"0.00 лв."}},{"$f":"SUMIFS(РазбивкаРазходи[Сума на чека],РазбивкаРазходи[G/L код],РезюмеМесечниРазходи[[#This Row],[G/L код]],РазбивкаРазходи[Дата на фактура],\">=\"&K$3,РазбивкаРазходи[Дата на фактура],\"<=\"&K$4)+SUMIFS(Други[Сума на чека],Други[G/L код],РезюмеМесечниРазходи[[#This Row],[G/L код]],Други[Дата на иницииране на искането за чек],\">=\"&DATEVALUE(\"1.\"&РезюмеМесечниРазходи[[#Headers],[Август]]&_ГОДИНА),Други[Дата на иницииране на искането за чек],\"<=\"&K$4)","v":{"v":0,"d":"0.00 лв."}},{"$f":"SUMIFS(РазбивкаРазходи[Сума на чека],РазбивкаРазходи[G/L код],РезюмеМесечниРазходи[[#This Row],[G/L код]],РазбивкаРазходи[Дата на фактура],\">=\"&L$3,РазбивкаРазходи[Дата на фактура],\"<=\"&L$4)+SUMIFS(Други[Сума на чека],Други[G/L код],РезюмеМесечниРазходи[[#This Row],[G/L код]],Други[Дата на иницииране на искането за чек],\">=\"&DATEVALUE(\"1.\"&РезюмеМесечниРазходи[[#Headers],[Септември]]&_ГОДИНА),Други[Дата на иницииране на искането за чек],\"<=\"&L$4)","v":{"v":0,"d":"0.00 лв."}},{"$f":"SUMIFS(РазбивкаРазходи[Сума на чека],РазбивкаРазходи[G/L код],РезюмеМесечниРазходи[[#This Row],[G/L код]],РазбивкаРазходи[Дата на фактура],\">=\"&M$3,РазбивкаРазходи[Дата на фактура],\"<=\"&M$4)+SUMIFS(Други[Сума на чека],Други[G/L код],РезюмеМесечниРазходи[[#This Row],[G/L код]],Други[Дата на иницииране на искането за чек],\">=\"&DATEVALUE(\"1.\"&РезюмеМесечниРазходи[[#Headers],[Октомври]]&_ГОДИНА),Други[Дата на иницииране на искането за чек],\"<=\"&M$4)","v":{"v":0,"d":"0.00 лв."}},{"$f":"SUMIFS(РазбивкаРазходи[Сума на чека],РазбивкаРазходи[G/L код],РезюмеМесечниРазходи[[#This Row],[G/L код]],РазбивкаРазходи[Дата на фактура],\">=\"&N$3,РазбивкаРазходи[Дата на фактура],\"<=\"&N$4)+SUMIFS(Други[Сума на чека],Други[G/L код],РезюмеМесечниРазходи[[#This Row],[G/L код]],Други[Дата на иницииране на искането за чек],\">=\"&DATEVALUE(\"1.\"&РезюмеМесечниРазходи[[#Headers],[Ноември]]&_ГОДИНА),Други[Дата на иницииране на искането за чек],\"<=\"&N$4)","v":{"v":0,"d":"0.00 лв."}},{"$f":"SUMIFS(РазбивкаРазходи[Сума на чека],РазбивкаРазходи[G/L код],РезюмеМесечниРазходи[[#This Row],[G/L код]],РазбивкаРазходи[Дата на фактура],\">=\"&O$3,РазбивкаРазходи[Дата на фактура],\"<=\"&O$4)+SUMIFS(Други[Сума на чека],Други[G/L код],РезюмеМесечниРазходи[[#This Row],[G/L код]],Други[Дата на иницииране на искането за чек],\">=\"&DATEVALUE(\"1.\"&РезюмеМесечниРазходи[[#Headers],[Декември]]&_ГОДИНА),Други[Дата на иницииране на искането за чек],\"<=\"&O$4)","v":{"v":0,"d":"0.00 лв."}},{"$f":"SUM(РезюмеМесечниРазходи[[#This Row],[Януари]:[Декември]])","v":{"v":0,"d":"0.00 лв."}}]
[null,5000,"Консумативи",{"$f":"SUMIFS(РазбивкаРазходи[Сума на чека],РазбивкаРазходи[G/L код],РезюмеМесечниРазходи[[#This Row],[G/L код]],РазбивкаРазходи[Дата на фактура],\">=\"&D$3,РазбивкаРазходи[Дата на фактура],\"<=\"&D$4)+SUMIFS(Други[Сума на чека],Други[G/L код],РезюмеМесечниРазходи[[#This Row],[G/L код]],Други[Дата на иницииране на искането за чек],\">=\"&DATEVALUE(РезюмеМесечниРазходи[[#Headers],[Януари]]&_ГОДИНА),Други[Дата на иницииране на искането за чек],\"<=\"&D$4)","v":{"v":0,"d":"0.00 лв."}},{"$f":"SUMIFS(РазбивкаРазходи[Сума на чека],РазбивкаРазходи[G/L код],РезюмеМесечниРазходи[[#This Row],[G/L код]],РазбивкаРазходи[Дата на фактура],\">=\"&E$3,РазбивкаРазходи[Дата на фактура],\"<=\"&E$4)+SUMIFS(Други[Сума на чека],Други[G/L код],РезюмеМесечниРазходи[[#This Row],[G/L код]],Други[Дата на иницииране на искането за чек],\">=\"&DATEVALUE(\"1.\"&РезюмеМесечниРазходи[[#Headers],[Февруари]]&_ГОДИНА),Други[Дата на иницииране на искането за чек],\"<=\"&E$4)","v":{"v":0,"d":"0.00 лв."}},{"$f":"SUMIFS(РазбивкаРазходи[Сума на чека],РазбивкаРазходи[G/L код],РезюмеМесечниРазходи[[#This Row],[G/L код]],РазбивкаРазходи[Дата на фактура],\">=\"&F$3,РазбивкаРазходи[Дата на фактура],\"<=\"&F$4)+SUMIFS(Други[Сума на чека],Други[G/L код],РезюмеМесечниРазходи[[#This Row],[G/L код]],Други[Дата на иницииране на искането за чек],\">=\"&DATEVALUE(\"1.\"&РезюмеМесечниРазходи[[#Headers],[Март]]&_ГОДИНА),Други[Дата на иницииране на искането за чек],\"<=\"&F$4)","v":{"v":0,"d":"0.00 лв."}},{"$f":"SUMIFS(РазбивкаРазходи[Сума на чека],РазбивкаРазходи[G/L код],РезюмеМесечниРазходи[[#This Row],[G/L код]],РазбивкаРазходи[Дата на фактура],\">=\"&G$3,РазбивкаРазходи[Дата на фактура],\"<=\"&G$4)+SUMIFS(Други[Сума на чека],Други[G/L код],РезюмеМесечниРазходи[[#This Row],[G/L код]],Други[Дата на иницииране на искането за чек],\">=\"&DATEVALUE(\"1.\"&РезюмеМесечниРазходи[[#Headers],[Април]]&_ГОДИНА),Други[Дата на иницииране на искането за чек],\"<=\"&G$4)","v":{"v":0,"d":"0.00 лв."}},{"$f":"SUMIFS(РазбивкаРазходи[Сума на чека],РазбивкаРазходи[G/L код],РезюмеМесечниРазходи[[#This Row],[G/L код]],РазбивкаРазходи[Дата на фактура],\">=\"&H$3,РазбивкаРазходи[Дата на фактура],\"<=\"&H$4)+SUMIFS(Други[Сума на чека],Други[G/L код],РезюмеМесечниРазходи[[#This Row],[G/L код]],Други[Дата на иницииране на искането за чек],\">=\"&DATEVALUE(\"1.\"&РезюмеМесечниРазходи[[#Headers],[Май]]&_ГОДИНА),Други[Дата на иницииране на искането за чек],\"<=\"&H$4)","v":{"v":0,"d":"0.00 лв."}},{"$f":"SUMIFS(РазбивкаРазходи[Сума на чека],РазбивкаРазходи[G/L код],РезюмеМесечниРазходи[[#This Row],[G/L код]],РазбивкаРазходи[Дата на фактура],\">=\"&I$3,РазбивкаРазходи[Дата на фактура],\"<=\"&I$4)+SUMIFS(Други[Сума на чека],Други[G/L код],РезюмеМесечниРазходи[[#This Row],[G/L код]],Други[Дата на иницииране на искането за чек],\">=\"&DATEVALUE(\"1.\"&РезюмеМесечниРазходи[[#Headers],[Юни]]&_ГОДИНА),Други[Дата на иницииране на искането за чек],\"<=\"&I$4)","v":{"v":0,"d":"0.00 лв."}},{"$f":"SUMIFS(РазбивкаРазходи[Сума на чека],РазбивкаРазходи[G/L код],РезюмеМесечниРазходи[[#This Row],[G/L код]],РазбивкаРазходи[Дата на фактура],\">=\"&J$3,РазбивкаРазходи[Дата на фактура],\"<=\"&J$4)+SUMIFS(Други[Сума на чека],Други[G/L код],РезюмеМесечниРазходи[[#This Row],[G/L код]],Други[Дата на иницииране на искането за чек],\">=\"&DATEVALUE(\"1.\"&РезюмеМесечниРазходи[[#Headers],[Юли]]&_ГОДИНА),Други[Дата на иницииране на искането за чек],\"<=\"&J$4)","v":{"v":0,"d":"0.00 лв."}},{"$f":"SUMIFS(РазбивкаРазходи[Сума на чека],РазбивкаРазходи[G/L код],РезюмеМесечниРазходи[[#This Row],[G/L код]],РазбивкаРазходи[Дата на фактура],\">=\"&K$3,РазбивкаРазходи[Дата на фактура],\"<=\"&K$4)+SUMIFS(Други[Сума на чека],Други[G/L код],РезюмеМесечниРазходи[[#This Row],[G/L код]],Други[Дата на иницииране на искането за чек],\">=\"&DATEVALUE(\"1.\"&РезюмеМесечниРазходи[[#Headers],[Август]]&_ГОДИНА),Други[Дата на иницииране на искането за чек],\"<=\"&K$4)","v":{"v":0,"d":"0.00 лв."}},{"$f":"SUMIFS(РазбивкаРазходи[Сума на чека],РазбивкаРазходи[G/L код],РезюмеМесечниРазходи[[#This Row],[G/L код]],РазбивкаРазходи[Дата на фактура],\">=\"&L$3,РазбивкаРазходи[Дата на фактура],\"<=\"&L$4)+SUMIFS(Други[Сума на чека],Други[G/L код],РезюмеМесечниРазходи[[#This Row],[G/L код]],Други[Дата на иницииране на искането за чек],\">=\"&DATEVALUE(\"1.\"&РезюмеМесечниРазходи[[#Headers],[Септември]]&_ГОДИНА),Други[Дата на иницииране на искането за чек],\"<=\"&L$4)","v":{"v":0,"d":"0.00 лв."}},{"$f":"SUMIFS(РазбивкаРазходи[Сума на чека],РазбивкаРазходи[G/L код],РезюмеМесечниРазходи[[#This Row],[G/L код]],РазбивкаРазходи[Дата на фактура],\">=\"&M$3,РазбивкаРазходи[Дата на фактура],\"<=\"&M$4)+SUMIFS(Други[Сума на чека],Други[G/L код],РезюмеМесечниРазходи[[#This Row],[G/L код]],Други[Дата на иницииране на искането за чек],\">=\"&DATEVALUE(\"1.\"&РезюмеМесечниРазходи[[#Headers],[Октомври]]&_ГОДИНА),Други[Дата на иницииране на искането за чек],\"<=\"&M$4)","v":{"v":0,"d":"0.00 лв."}},{"$f":"SUMIFS(РазбивкаРазходи[Сума на чека],РазбивкаРазходи[G/L код],РезюмеМесечниРазходи[[#This Row],[G/L код]],РазбивкаРазходи[Дата на фактура],\">=\"&N$3,РазбивкаРазходи[Дата на фактура],\"<=\"&N$4)+SUMIFS(Други[Сума на чека],Други[G/L код],РезюмеМесечниРазходи[[#This Row],[G/L код]],Други[Дата на иницииране на искането за чек],\">=\"&DATEVALUE(\"1.\"&РезюмеМесечниРазходи[[#Headers],[Ноември]]&_ГОДИНА),Други[Дата на иницииране на искането за чек],\"<=\"&N$4)","v":{"v":0,"d":"0.00 лв."}},{"$f":"SUMIFS(РазбивкаРазходи[Сума на чека],РазбивкаРазходи[G/L код],РезюмеМесечниРазходи[[#This Row],[G/L код]],РазбивкаРазходи[Дата на фактура],\">=\"&O$3,РазбивкаРазходи[Дата на фактура],\"<=\"&O$4)+SUMIFS(Други[Сума на чека],Други[G/L код],РезюмеМесечниРазходи[[#This Row],[G/L код]],Други[Дата на иницииране на искането за чек],\">=\"&DATEVALUE(\"1.\"&РезюмеМесечниРазходи[[#Headers],[Декември]]&_ГОДИНА),Други[Дата на иницииране на искането за чек],\"<=\"&O$4)","v":{"v":0,"d":"0.00 лв."}},{"$f":"SUM(РезюмеМесечниРазходи[[#This Row],[Януари]:[Декември]])","v":{"v":0,"d":"0.00 лв."}}]
[null,6000,"Разходи за клиент",{"$f":"SUMIFS(РазбивкаРазходи[Сума на чека],РазбивкаРазходи[G/L код],РезюмеМесечниРазходи[[#This Row],[G/L код]],РазбивкаРазходи[Дата на фактура],\">=\"&D$3,РазбивкаРазходи[Дата на фактура],\"<=\"&D$4)+SUMIFS(Други[Сума на чека],Други[G/L код],РезюмеМесечниРазходи[[#This Row],[G/L код]],Други[Дата на иницииране на искането за чек],\">=\"&DATEVALUE(РезюмеМесечниРазходи[[#Headers],[Януари]]&_ГОДИНА),Други[Дата на иницииране на искането за чек],\"<=\"&D$4)","v":{"v":0,"d":"0.00 лв."}},{"$f":"SUMIFS(РазбивкаРазходи[Сума на чека],РазбивкаРазходи[G/L код],РезюмеМесечниРазходи[[#This Row],[G/L код]],РазбивкаРазходи[Дата на фактура],\">=\"&E$3,РазбивкаРазходи[Дата на фактура],\"<=\"&E$4)+SUMIFS(Други[Сума на чека],Други[G/L код],РезюмеМесечниРазходи[[#This Row],[G/L код]],Други[Дата на иницииране на искането за чек],\">=\"&DATEVALUE(\"1.\"&РезюмеМесечниРазходи[[#Headers],[Февруари]]&_ГОДИНА),Други[Дата на иницииране на искането за чек],\"<=\"&E$4)","v":{"v":0,"d":"0.00 лв."}},{"$f":"SUMIFS(РазбивкаРазходи[Сума на чека],РазбивкаРазходи[G/L код],РезюмеМесечниРазходи[[#This Row],[G/L код]],РазбивкаРазходи[Дата на фактура],\">=\"&F$3,РазбивкаРазходи[Дата на фактура],\"<=\"&F$4)+SUMIFS(Други[Сума на чека],Други[G/L код],РезюмеМесечниРазходи[[#This Row],[G/L код]],Други[Дата на иницииране на искането за чек],\">=\"&DATEVALUE(\"1.\"&РезюмеМесечниРазходи[[#Headers],[Март]]&_ГОДИНА),Други[Дата на иницииране на искането за чек],\"<=\"&F$4)","v":{"v":0,"d":"0.00 лв."}},{"$f":"SUMIFS(РазбивкаРазходи[Сума на чека],РазбивкаРазходи[G/L код],РезюмеМесечниРазходи[[#This Row],[G/L код]],РазбивкаРазходи[Дата на фактура],\">=\"&G$3,РазбивкаРазходи[Дата на фактура],\"<=\"&G$4)+SUMIFS(Други[Сума на чека],Други[G/L код],РезюмеМесечниРазходи[[#This Row],[G/L код]],Други[Дата на иницииране на искането за чек],\">=\"&DATEVALUE(\"1.\"&РезюмеМесечниРазходи[[#Headers],[Април]]&_ГОДИНА),Други[Дата на иницииране на искането за чек],\"<=\"&G$4)","v":{"v":0,"d":"0.00 лв."}},{"$f":"SUMIFS(РазбивкаРазходи[Сума на чека],РазбивкаРазходи[G/L код],РезюмеМесечниРазходи[[#This Row],[G/L код]],РазбивкаРазходи[Дата на фактура],\">=\"&H$3,РазбивкаРазходи[Дата на фактура],\"<=\"&H$4)+SUMIFS(Други[Сума на чека],Други[G/L код],РезюмеМесечниРазходи[[#This Row],[G/L код]],Други[Дата на иницииране на искането за чек],\">=\"&DATEVALUE(\"1.\"&РезюмеМесечниРазходи[[#Headers],[Май]]&_ГОДИНА),Други[Дата на иницииране на искането за чек],\"<=\"&H$4)","v":{"v":0,"d":"0.00 лв."}},{"$f":"SUMIFS(РазбивкаРазходи[Сума на чека],РазбивкаРазходи[G/L код],РезюмеМесечниРазходи[[#This Row],[G/L код]],РазбивкаРазходи[Дата на фактура],\">=\"&I$3,РазбивкаРазходи[Дата на фактура],\"<=\"&I$4)+SUMIFS(Други[Сума на чека],Други[G/L код],РезюмеМесечниРазходи[[#This Row],[G/L код]],Други[Дата на иницииране на искането за чек],\">=\"&DATEVALUE(\"1.\"&РезюмеМесечниРазходи[[#Headers],[Юни]]&_ГОДИНА),Други[Дата на иницииране на искането за чек],\"<=\"&I$4)","v":{"v":0,"d":"0.00 лв."}},{"$f":"SUMIFS(РазбивкаРазходи[Сума на чека],РазбивкаРазходи[G/L код],РезюмеМесечниРазходи[[#This Row],[G/L код]],РазбивкаРазходи[Дата на фактура],\">=\"&J$3,РазбивкаРазходи[Дата на фактура],\"<=\"&J$4)+SUMIFS(Други[Сума на чека],Други[G/L код],РезюмеМесечниРазходи[[#This Row],[G/L код]],Други[Дата на иницииране на искането за чек],\">=\"&DATEVALUE(\"1.\"&РезюмеМесечниРазходи[[#Headers],[Юли]]&_ГОДИНА),Други[Дата на иницииране на искането за чек],\"<=\"&J$4)","v":{"v":0,"d":"0.00 лв."}},{"$f":"SUMIFS(РазбивкаРазходи[Сума на чека],РазбивкаРазходи[G/L код],РезюмеМесечниРазходи[[#This Row],[G/L код]],РазбивкаРазходи[Дата на фактура],\">=\"&K$3,РазбивкаРазходи[Дата на фактура],\"<=\"&K$4)+SUMIFS(Други[Сума на чека],Други[G/L код],РезюмеМесечниРазходи[[#This Row],[G/L код]],Други[Дата на иницииране на искането за чек],\">=\"&DATEVALUE(\"1.\"&РезюмеМесечниРазходи[[#Headers],[Август]]&_ГОДИНА),Други[Дата на иницииране на искането за чек],\"<=\"&K$4)","v":{"v":0,"d":"0.00 лв."}},{"$f":"SUMIFS(РазбивкаРазходи[Сума на чека],РазбивкаРазходи[G/L код],РезюмеМесечниРазходи[[#This Row],[G/L код]],РазбивкаРазходи[Дата на фактура],\">=\"&L$3,РазбивкаРазходи[Дата на фактура],\"<=\"&L$4)+SUMIFS(Други[Сума на чека],Други[G/L код],РезюмеМесечниРазходи[[#This Row],[G/L код]],Други[Дата на иницииране на искането за чек],\">=\"&DATEVALUE(\"1.\"&РезюмеМесечниРазходи[[#Headers],[Септември]]&_ГОДИНА),Други[Дата на иницииране на искането за чек],\"<=\"&L$4)","v":{"v":0,"d":"0.00 лв."}},{"$f":"SUMIFS(РазбивкаРазходи[Сума на чека],РазбивкаРазходи[G/L код],РезюмеМесечниРазходи[[#This Row],[G/L код]],РазбивкаРазходи[Дата на фактура],\">=\"&M$3,РазбивкаРазходи[Дата на фактура],\"<=\"&M$4)+SUMIFS(Други[Сума на чека],Други[G/L код],РезюмеМесечниРазходи[[#This Row],[G/L код]],Други[Дата на иницииране на искането за чек],\">=\"&DATEVALUE(\"1.\"&РезюмеМесечниРазходи[[#Headers],[Октомври]]&_ГОДИНА),Други[Дата на иницииране на искането за чек],\"<=\"&M$4)","v":{"v":0,"d":"0.00 лв."}},{"$f":"SUMIFS(РазбивкаРазходи[Сума на чека],РазбивкаРазходи[G/L код],РезюмеМесечниРазходи[[#This Row],[G/L код]],РазбивкаРазходи[Дата на фактура],\">=\"&N$3,РазбивкаРазходи[Дата на фактура],\"<=\"&N$4)+SUMIFS(Други[Сума на чека],Други[G/L код],РезюмеМесечниРазходи[[#This Row],[G/L код]],Други[Дата на иницииране на искането за чек],\">=\"&DATEVALUE(\"1.\"&РезюмеМесечниРазходи[[#Headers],[Ноември]]&_ГОДИНА),Други[Дата на иницииране на искането за чек],\"<=\"&N$4)","v":{"v":0,"d":"0.00 лв."}},{"$f":"SUMIFS(РазбивкаРазходи[Сума на чека],РазбивкаРазходи[G/L код],РезюмеМесечниРазходи[[#This Row],[G/L код]],РазбивкаРазходи[Дата на фактура],\">=\"&O$3,РазбивкаРазходи[Дата на фактура],\"<=\"&O$4)+SUMIFS(Други[Сума на чека],Други[G/L код],РезюмеМесечниРазходи[[#This Row],[G/L код]],Други[Дата на иницииране на искането за чек],\">=\"&DATEVALUE(\"1.\"&РезюмеМесечниРазходи[[#Headers],[Декември]]&_ГОДИНА),Други[Дата на иницииране на искането за чек],\"<=\"&O$4)","v":{"v":0,"d":"0.00 лв."}},{"$f":"SUM(РезюмеМесечниРазходи[[#This Row],[Януари]:[Декември]])","v":{"v":0,"d":"0.00 лв."}}]
[null,7000,"Компютри",{"$f":"SUMIFS(РазбивкаРазходи[Сума на чека],РазбивкаРазходи[G/L код],РезюмеМесечниРазходи[[#This Row],[G/L код]],РазбивкаРазходи[Дата на фактура],\">=\"&D$3,РазбивкаРазходи[Дата на фактура],\"<=\"&D$4)+SUMIFS(Други[Сума на чека],Други[G/L код],РезюмеМесечниРазходи[[#This Row],[G/L код]],Други[Дата на иницииране на искането за чек],\">=\"&DATEVALUE(РезюмеМесечниРазходи[[#Headers],[Януари]]&_ГОДИНА),Други[Дата на иницииране на искането за чек],\"<=\"&D$4)","v":{"v":0,"d":"0.00 лв."}},{"$f":"SUMIFS(РазбивкаРазходи[Сума на чека],РазбивкаРазходи[G/L код],РезюмеМесечниРазходи[[#This Row],[G/L код]],РазбивкаРазходи[Дата на фактура],\">=\"&E$3,РазбивкаРазходи[Дата на фактура],\"<=\"&E$4)+SUMIFS(Други[Сума на чека],Други[G/L код],РезюмеМесечниРазходи[[#This Row],[G/L код]],Други[Дата на иницииране на искането за чек],\">=\"&DATEVALUE(\"1.\"&РезюмеМесечниРазходи[[#Headers],[Февруари]]&_ГОДИНА),Други[Дата на иницииране на искането за чек],\"<=\"&E$4)","v":{"v":0,"d":"0.00 лв."}},{"$f":"SUMIFS(РазбивкаРазходи[Сума на чека],РазбивкаРазходи[G/L код],РезюмеМесечниРазходи[[#This Row],[G/L код]],РазбивкаРазходи[Дата на фактура],\">=\"&F$3,РазбивкаРазходи[Дата на фактура],\"<=\"&F$4)+SUMIFS(Други[Сума на чека],Други[G/L код],РезюмеМесечниРазходи[[#This Row],[G/L код]],Други[Дата на иницииране на искането за чек],\">=\"&DATEVALUE(\"1.\"&РезюмеМесечниРазходи[[#Headers],[Март]]&_ГОДИНА),Други[Дата на иницииране на искането за чек],\"<=\"&F$4)","v":{"v":0,"d":"0.00 лв."}},{"$f":"SUMIFS(РазбивкаРазходи[Сума на чека],РазбивкаРазходи[G/L код],РезюмеМесечниРазходи[[#This Row],[G/L код]],РазбивкаРазходи[Дата на фактура],\">=\"&G$3,РазбивкаРазходи[Дата на фактура],\"<=\"&G$4)+SUMIFS(Други[Сума на чека],Други[G/L код],РезюмеМесечниРазходи[[#This Row],[G/L код]],Други[Дата на иницииране на искането за чек],\">=\"&DATEVALUE(\"1.\"&РезюмеМесечниРазходи[[#Headers],[Април]]&_ГОДИНА),Други[Дата на иницииране на искането за чек],\"<=\"&G$4)","v":{"v":0,"d":"0.00 лв."}},{"$f":"SUMIFS(РазбивкаРазходи[Сума на чека],РазбивкаРазходи[G/L код],РезюмеМесечниРазходи[[#This Row],[G/L код]],РазбивкаРазходи[Дата на фактура],\">=\"&H$3,РазбивкаРазходи[Дата на фактура],\"<=\"&H$4)+SUMIFS(Други[Сума на чека],Други[G/L код],РезюмеМесечниРазходи[[#This Row],[G/L код]],Други[Дата на иницииране на искането за чек],\">=\"&DATEVALUE(\"1.\"&РезюмеМесечниРазходи[[#Headers],[Май]]&_ГОДИНА),Други[Дата на иницииране на искането за чек],\"<=\"&H$4)","v":{"v":0,"d":"0.00 лв."}},{"$f":"SUMIFS(РазбивкаРазходи[Сума на чека],РазбивкаРазходи[G/L код],РезюмеМесечниРазходи[[#This Row],[G/L код]],РазбивкаРазходи[Дата на фактура],\">=\"&I$3,РазбивкаРазходи[Дата на фактура],\"<=\"&I$4)+SUMIFS(Други[Сума на чека],Други[G/L код],РезюмеМесечниРазходи[[#This Row],[G/L код]],Други[Дата на иницииране на искането за чек],\">=\"&DATEVALUE(\"1.\"&РезюмеМесечниРазходи[[#Headers],[Юни]]&_ГОДИНА),Други[Дата на иницииране на искането за чек],\"<=\"&I$4)","v":{"v":0,"d":"0.00 лв."}},{"$f":"SUMIFS(РазбивкаРазходи[Сума на чека],РазбивкаРазходи[G/L код],РезюмеМесечниРазходи[[#This Row],[G/L код]],РазбивкаРазходи[Дата на фактура],\">=\"&J$3,РазбивкаРазходи[Дата на фактура],\"<=\"&J$4)+SUMIFS(Други[Сума на чека],Други[G/L код],РезюмеМесечниРазходи[[#This Row],[G/L код]],Други[Дата на иницииране на искането за чек],\">=\"&DATEVALUE(\"1.\"&РезюмеМесечниРазходи[[#Headers],[Юли]]&_ГОДИНА),Други[Дата на иницииране на искането за чек],\"<=\"&J$4)","v":{"v":0,"d":"0.00 лв."}},{"$f":"SUMIFS(РазбивкаРазходи[Сума на чека],РазбивкаРазходи[G/L код],РезюмеМесечниРазходи[[#This Row],[G/L код]],РазбивкаРазходи[Дата на фактура],\">=\"&K$3,РазбивкаРазходи[Дата на фактура],\"<=\"&K$4)+SUMIFS(Други[Сума на чека],Други[G/L код],РезюмеМесечниРазходи[[#This Row],[G/L код]],Други[Дата на иницииране на искането за чек],\">=\"&DATEVALUE(\"1.\"&РезюмеМесечниРазходи[[#Headers],[Август]]&_ГОДИНА),Други[Дата на иницииране на искането за чек],\"<=\"&K$4)","v":{"v":0,"d":"0.00 лв."}},{"$f":"SUMIFS(РазбивкаРазходи[Сума на чека],РазбивкаРазходи[G/L код],РезюмеМесечниРазходи[[#This Row],[G/L код]],РазбивкаРазходи[Дата на фактура],\">=\"&L$3,РазбивкаРазходи[Дата на фактура],\"<=\"&L$4)+SUMIFS(Други[Сума на чека],Други[G/L код],РезюмеМесечниРазходи[[#This Row],[G/L код]],Други[Дата на иницииране на искането за чек],\">=\"&DATEVALUE(\"1.\"&РезюмеМесечниРазходи[[#Headers],[Септември]]&_ГОДИНА),Други[Дата на иницииране на искането за чек],\"<=\"&L$4)","v":{"v":0,"d":"0.00 лв."}},{"$f":"SUMIFS(РазбивкаРазходи[Сума на чека],РазбивкаРазходи[G/L код],РезюмеМесечниРазходи[[#This Row],[G/L код]],РазбивкаРазходи[Дата на фактура],\">=\"&M$3,РазбивкаРазходи[Дата на фактура],\"<=\"&M$4)+SUMIFS(Други[Сума на чека],Други[G/L код],РезюмеМесечниРазходи[[#This Row],[G/L код]],Други[Дата на иницииране на искането за чек],\">=\"&DATEVALUE(\"1.\"&РезюмеМесечниРазходи[[#Headers],[Октомври]]&_ГОДИНА),Други[Дата на иницииране на искането за чек],\"<=\"&M$4)","v":{"v":0,"d":"0.00 лв."}},{"$f":"SUMIFS(РазбивкаРазходи[Сума на чека],РазбивкаРазходи[G/L код],РезюмеМесечниРазходи[[#This Row],[G/L код]],РазбивкаРазходи[Дата на фактура],\">=\"&N$3,РазбивкаРазходи[Дата на фактура],\"<=\"&N$4)+SUMIFS(Други[Сума на чека],Други[G/L код],РезюмеМесечниРазходи[[#This Row],[G/L код]],Други[Дата на иницииране на искането за чек],\">=\"&DATEVALUE(\"1.\"&РезюмеМесечниРазходи[[#Headers],[Ноември]]&_ГОДИНА),Други[Дата на иницииране на искането за чек],\"<=\"&N$4)","v":{"v":0,"d":"0.00 лв."}},{"$f":"SUMIFS(РазбивкаРазходи[Сума на чека],РазбивкаРазходи[G/L код],РезюмеМесечниРазходи[[#This Row],[G/L код]],РазбивкаРазходи[Дата на фактура],\">=\"&O$3,РазбивкаРазходи[Дата на фактура],\"<=\"&O$4)+SUMIFS(Други[Сума на чека],Други[G/L код],РезюмеМесечниРазходи[[#This Row],[G/L код]],Други[Дата на иницииране на искането за чек],\">=\"&DATEVALUE(\"1.\"&РезюмеМесечниРазходи[[#Headers],[Декември]]&_ГОДИНА),Други[Дата на иницииране на искането за чек],\"<=\"&O$4)","v":{"v":0,"d":"0.00 лв."}},{"$f":"SUM(РезюмеМесечниРазходи[[#This Row],[Януари]:[Декември]])","v":{"v":0,"d":"0.00 лв."}}]
[null,8000,"Медицински план",{"$f":"SUMIFS(РазбивкаРазходи[Сума на чека],РазбивкаРазходи[G/L код],РезюмеМесечниРазходи[[#This Row],[G/L код]],РазбивкаРазходи[Дата на фактура],\">=\"&D$3,РазбивкаРазходи[Дата на фактура],\"<=\"&D$4)+SUMIFS(Други[Сума на чека],Други[G/L код],РезюмеМесечниРазходи[[#This Row],[G/L код]],Други[Дата на иницииране на искането за чек],\">=\"&DATEVALUE(РезюмеМесечниРазходи[[#Headers],[Януари]]&_ГОДИНА),Други[Дата на иницииране на искането за чек],\"<=\"&D$4)","v":{"v":0,"d":"0.00 лв."}},{"$f":"SUMIFS(РазбивкаРазходи[Сума на чека],РазбивкаРазходи[G/L код],РезюмеМесечниРазходи[[#This Row],[G/L код]],РазбивкаРазходи[Дата на фактура],\">=\"&E$3,РазбивкаРазходи[Дата на фактура],\"<=\"&E$4)+SUMIFS(Други[Сума на чека],Други[G/L код],РезюмеМесечниРазходи[[#This Row],[G/L код]],Други[Дата на иницииране на искането за чек],\">=\"&DATEVALUE(\"1.\"&РезюмеМесечниРазходи[[#Headers],[Февруари]]&_ГОДИНА),Други[Дата на иницииране на искането за чек],\"<=\"&E$4)","v":{"v":0,"d":"0.00 лв."}},{"$f":"SUMIFS(РазбивкаРазходи[Сума на чека],РазбивкаРазходи[G/L код],РезюмеМесечниРазходи[[#This Row],[G/L код]],РазбивкаРазходи[Дата на фактура],\">=\"&F$3,РазбивкаРазходи[Дата на фактура],\"<=\"&F$4)+SUMIFS(Други[Сума на чека],Други[G/L код],РезюмеМесечниРазходи[[#This Row],[G/L код]],Други[Дата на иницииране на искането за чек],\">=\"&DATEVALUE(\"1.\"&РезюмеМесечниРазходи[[#Headers],[Март]]&_ГОДИНА),Други[Дата на иницииране на искането за чек],\"<=\"&F$4)","v":{"v":0,"d":"0.00 лв."}},{"$f":"SUMIFS(РазбивкаРазходи[Сума на чека],РазбивкаРазходи[G/L код],РезюмеМесечниРазходи[[#This Row],[G/L код]],РазбивкаРазходи[Дата на фактура],\">=\"&G$3,РазбивкаРазходи[Дата на фактура],\"<=\"&G$4)+SUMIFS(Други[Сума на чека],Други[G/L код],РезюмеМесечниРазходи[[#This Row],[G/L код]],Други[Дата на иницииране на искането за чек],\">=\"&DATEVALUE(\"1.\"&РезюмеМесечниРазходи[[#Headers],[Април]]&_ГОДИНА),Други[Дата на иницииране на искането за чек],\"<=\"&G$4)","v":{"v":0,"d":"0.00 лв."}},{"$f":"SUMIFS(РазбивкаРазходи[Сума на чека],РазбивкаРазходи[G/L код],РезюмеМесечниРазходи[[#This Row],[G/L код]],РазбивкаРазходи[Дата на фактура],\">=\"&H$3,РазбивкаРазходи[Дата на фактура],\"<=\"&H$4)+SUMIFS(Други[Сума на чека],Други[G/L код],РезюмеМесечниРазходи[[#This Row],[G/L код]],Други[Дата на иницииране на искането за чек],\">=\"&DATEVALUE(\"1.\"&РезюмеМесечниРазходи[[#Headers],[Май]]&_ГОДИНА),Други[Дата на иницииране на искането за чек],\"<=\"&H$4)","v":{"v":0,"d":"0.00 лв."}},{"$f":"SUMIFS(РазбивкаРазходи[Сума на чека],РазбивкаРазходи[G/L код],РезюмеМесечниРазходи[[#This Row],[G/L код]],РазбивкаРазходи[Дата на фактура],\">=\"&I$3,РазбивкаРазходи[Дата на фактура],\"<=\"&I$4)+SUMIFS(Други[Сума на чека],Други[G/L код],РезюмеМесечниРазходи[[#This Row],[G/L код]],Други[Дата на иницииране на искането за чек],\">=\"&DATEVALUE(\"1.\"&РезюмеМесечниРазходи[[#Headers],[Юни]]&_ГОДИНА),Други[Дата на иницииране на искането за чек],\"<=\"&I$4)","v":{"v":0,"d":"0.00 лв."}},{"$f":"SUMIFS(РазбивкаРазходи[Сума на чека],РазбивкаРазходи[G/L код],РезюмеМесечниРазходи[[#This Row],[G/L код]],РазбивкаРазходи[Дата на фактура],\">=\"&J$3,РазбивкаРазходи[Дата на фактура],\"<=\"&J$4)+SUMIFS(Други[Сума на чека],Други[G/L код],РезюмеМесечниРазходи[[#This Row],[G/L код]],Други[Дата на иницииране на искането за чек],\">=\"&DATEVALUE(\"1.\"&РезюмеМесечниРазходи[[#Headers],[Юли]]&_ГОДИНА),Други[Дата на иницииране на искането за чек],\"<=\"&J$4)","v":{"v":0,"d":"0.00 лв."}},{"$f":"SUMIFS(РазбивкаРазходи[Сума на чека],РазбивкаРазходи[G/L код],РезюмеМесечниРазходи[[#This Row],[G/L код]],РазбивкаРазходи[Дата на фактура],\">=\"&K$3,РазбивкаРазходи[Дата на фактура],\"<=\"&K$4)+SUMIFS(Други[Сума на чека],Други[G/L код],РезюмеМесечниРазходи[[#This Row],[G/L код]],Други[Дата на иницииране на искането за чек],\">=\"&DATEVALUE(\"1.\"&РезюмеМесечниРазходи[[#Headers],[Август]]&_ГОДИНА),Други[Дата на иницииране на искането за чек],\"<=\"&K$4)","v":{"v":0,"d":"0.00 лв."}},{"$f":"SUMIFS(РазбивкаРазходи[Сума на чека],РазбивкаРазходи[G/L код],РезюмеМесечниРазходи[[#This Row],[G/L код]],РазбивкаРазходи[Дата на фактура],\">=\"&L$3,РазбивкаРазходи[Дата на фактура],\"<=\"&L$4)+SUMIFS(Други[Сума на чека],Други[G/L код],РезюмеМесечниРазходи[[#This Row],[G/L код]],Други[Дата на иницииране на искането за чек],\">=\"&DATEVALUE(\"1.\"&РезюмеМесечниРазходи[[#Headers],[Септември]]&_ГОДИНА),Други[Дата на иницииране на искането за чек],\"<=\"&L$4)","v":{"v":0,"d":"0.00 лв."}},{"$f":"SUMIFS(РазбивкаРазходи[Сума на чека],РазбивкаРазходи[G/L код],РезюмеМесечниРазходи[[#This Row],[G/L код]],РазбивкаРазходи[Дата на фактура],\">=\"&M$3,РазбивкаРазходи[Дата на фактура],\"<=\"&M$4)+SUMIFS(Други[Сума на чека],Други[G/L код],РезюмеМесечниРазходи[[#This Row],[G/L код]],Други[Дата на иницииране на искането за чек],\">=\"&DATEVALUE(\"1.\"&РезюмеМесечниРазходи[[#Headers],[Октомври]]&_ГОДИНА),Други[Дата на иницииране на искането за чек],\"<=\"&M$4)","v":{"v":0,"d":"0.00 лв."}},{"$f":"SUMIFS(РазбивкаРазходи[Сума на чека],РазбивкаРазходи[G/L код],РезюмеМесечниРазходи[[#This Row],[G/L код]],РазбивкаРазходи[Дата на фактура],\">=\"&N$3,РазбивкаРазходи[Дата на фактура],\"<=\"&N$4)+SUMIFS(Други[Сума на чека],Други[G/L код],РезюмеМесечниРазходи[[#This Row],[G/L код]],Други[Дата на иницииране на искането за чек],\">=\"&DATEVALUE(\"1.\"&РезюмеМесечниРазходи[[#Headers],[Ноември]]&_ГОДИНА),Други[Дата на иницииране на искането за чек],\"<=\"&N$4)","v":{"v":0,"d":"0.00 лв."}},{"$f":"SUMIFS(РазбивкаРазходи[Сума на чека],РазбивкаРазходи[G/L код],РезюмеМесечниРазходи[[#This Row],[G/L код]],РазбивкаРазходи[Дата на фактура],\">=\"&O$3,РазбивкаРазходи[Дата на фактура],\"<=\"&O$4)+SUMIFS(Други[Сума на чека],Други[G/L код],РезюмеМесечниРазходи[[#This Row],[G/L код]],Други[Дата на иницииране на искането за чек],\">=\"&DATEVALUE(\"1.\"&РезюмеМесечниРазходи[[#Headers],[Декември]]&_ГОДИНА),Други[Дата на иницииране на искането за чек],\"<=\"&O$4)","v":{"v":0,"d":"0.00 лв."}},{"$f":"SUM(РезюмеМесечниРазходи[[#This Row],[Януари]:[Декември]])","v":{"v":0,"d":"0.00 лв."}}]
[null,9000,"Разходи за сграда",{"$f":"SUMIFS(РазбивкаРазходи[Сума на чека],РазбивкаРазходи[G/L код],РезюмеМесечниРазходи[[#This Row],[G/L код]],РазбивкаРазходи[Дата на фактура],\">=\"&D$3,РазбивкаРазходи[Дата на фактура],\"<=\"&D$4)+SUMIFS(Други[Сума на чека],Други[G/L код],РезюмеМесечниРазходи[[#This Row],[G/L код]],Други[Дата на иницииране на искането за чек],\">=\"&DATEVALUE(РезюмеМесечниРазходи[[#Headers],[Януари]]&_ГОДИНА),Други[Дата на иницииране на искането за чек],\"<=\"&D$4)","v":{"v":0,"d":"0.00 лв."}},{"$f":"SUMIFS(РазбивкаРазходи[Сума на чека],РазбивкаРазходи[G/L код],РезюмеМесечниРазходи[[#This Row],[G/L код]],РазбивкаРазходи[Дата на фактура],\">=\"&E$3,РазбивкаРазходи[Дата на фактура],\"<=\"&E$4)+SUMIFS(Други[Сума на чека],Други[G/L код],РезюмеМесечниРазходи[[#This Row],[G/L код]],Други[Дата на иницииране на искането за чек],\">=\"&DATEVALUE(\"1.\"&РезюмеМесечниРазходи[[#Headers],[Февруари]]&_ГОДИНА),Други[Дата на иницииране на искането за чек],\"<=\"&E$4)","v":{"v":0,"d":"0.00 лв."}},{"$f":"SUMIFS(РазбивкаРазходи[Сума на чека],РазбивкаРазходи[G/L код],РезюмеМесечниРазходи[[#This Row],[G/L код]],РазбивкаРазходи[Дата на фактура],\">=\"&F$3,РазбивкаРазходи[Дата на фактура],\"<=\"&F$4)+SUMIFS(Други[Сума на чека],Други[G/L код],РезюмеМесечниРазходи[[#This Row],[G/L код]],Други[Дата на иницииране на искането за чек],\">=\"&DATEVALUE(\"1.\"&РезюмеМесечниРазходи[[#Headers],[Март]]&_ГОДИНА),Други[Дата на иницииране на искането за чек],\"<=\"&F$4)","v":{"v":0,"d":"0.00 лв."}},{"$f":"SUMIFS(РазбивкаРазходи[Сума на чека],РазбивкаРазходи[G/L код],РезюмеМесечниРазходи[[#This Row],[G/L код]],РазбивкаРазходи[Дата на фактура],\">=\"&G$3,РазбивкаРазходи[Дата на фактура],\"<=\"&G$4)+SUMIFS(Други[Сума на чека],Други[G/L код],РезюмеМесечниРазходи[[#This Row],[G/L код]],Други[Дата на иницииране на искането за чек],\">=\"&DATEVALUE(\"1.\"&РезюмеМесечниРазходи[[#Headers],[Април]]&_ГОДИНА),Други[Дата на иницииране на искането за чек],\"<=\"&G$4)","v":{"v":0,"d":"0.00 лв."}},{"$f":"SUMIFS(РазбивкаРазходи[Сума на чека],РазбивкаРазходи[G/L код],РезюмеМесечниРазходи[[#This Row],[G/L код]],РазбивкаРазходи[Дата на фактура],\">=\"&H$3,РазбивкаРазходи[Дата на фактура],\"<=\"&H$4)+SUMIFS(Други[Сума на чека],Други[G/L код],РезюмеМесечниРазходи[[#This Row],[G/L код]],Други[Дата на иницииране на искането за чек],\">=\"&DATEVALUE(\"1.\"&РезюмеМесечниРазходи[[#Headers],[Май]]&_ГОДИНА),Други[Дата на иницииране на искането за чек],\"<=\"&H$4)","v":{"v":0,"d":"0.00 лв."}},{"$f":"SUMIFS(РазбивкаРазходи[Сума на чека],РазбивкаРазходи[G/L код],РезюмеМесечниРазходи[[#This Row],[G/L код]],РазбивкаРазходи[Дата на фактура],\">=\"&I$3,РазбивкаРазходи[Дата на фактура],\"<=\"&I$4)+SUMIFS(Други[Сума на чека],Други[G/L код],РезюмеМесечниРазходи[[#This Row],[G/L код]],Други[Дата на иницииране на искането за чек],\">=\"&DATEVALUE(\"1.\"&РезюмеМесечниРазходи[[#Headers],[Юни]]&_ГОДИНА),Други[Дата на иницииране на искането за чек],\"<=\"&I$4)","v":{"v":0,"d":"0.00 лв."}},{"$f":"SUMIFS(РазбивкаРазходи[Сума на чека],РазбивкаРазходи[G/L код],РезюмеМесечниРазходи[[#This Row],[G/L код]],РазбивкаРазходи[Дата на фактура],\">=\"&J$3,РазбивкаРазходи[Дата на фактура],\"<=\"&J$4)+SUMIFS(Други[Сума на чека],Други[G/L код],РезюмеМесечниРазходи[[#This Row],[G/L код]],Други[Дата на иницииране на искането за чек],\">=\"&DATEVALUE(\"1.\"&РезюмеМесечниРазходи[[#Headers],[Юли]]&_ГОДИНА),Други[Дата на иницииране на искането за чек],\"<=\"&J$4)","v":{"v":0,"d":"0.00 лв."}},{"$f":"SUMIFS(РазбивкаРазходи[Сума на чека],РазбивкаРазходи[G/L код],РезюмеМесечниРазходи[[#This Row],[G/L код]],РазбивкаРазходи[Дата на фактура],\">=\"&K$3,РазбивкаРазходи[Дата на фактура],\"<=\"&K$4)+SUMIFS(Други[Сума на чека],Други[G/L код],РезюмеМесечниРазходи[[#This Row],[G/L код]],Други[Дата на иницииране на искането за чек],\">=\"&DATEVALUE(\"1.\"&РезюмеМесечниРазходи[[#Headers],[Август]]&_ГОДИНА),Други[Дата на иницииране на искането за чек],\"<=\"&K$4)","v":{"v":0,"d":"0.00 лв."}},{"$f":"SUMIFS(РазбивкаРазходи[Сума на чека],РазбивкаРазходи[G/L код],РезюмеМесечниРазходи[[#This Row],[G/L код]],РазбивкаРазходи[Дата на фактура],\">=\"&L$3,РазбивкаРазходи[Дата на фактура],\"<=\"&L$4)+SUMIFS(Други[Сума на чека],Други[G/L код],РезюмеМесечниРазходи[[#This Row],[G/L код]],Други[Дата на иницииране на искането за чек],\">=\"&DATEVALUE(\"1.\"&РезюмеМесечниРазходи[[#Headers],[Септември]]&_ГОДИНА),Други[Дата на иницииране на искането за чек],\"<=\"&L$4)","v":{"v":0,"d":"0.00 лв."}},{"$f":"SUMIFS(РазбивкаРазходи[Сума на чека],РазбивкаРазходи[G/L код],РезюмеМесечниРазходи[[#This Row],[G/L код]],РазбивкаРазходи[Дата на фактура],\">=\"&M$3,РазбивкаРазходи[Дата на фактура],\"<=\"&M$4)+SUMIFS(Други[Сума на чека],Други[G/L код],РезюмеМесечниРазходи[[#This Row],[G/L код]],Други[Дата на иницииране на искането за чек],\">=\"&DATEVALUE(\"1.\"&РезюмеМесечниРазходи[[#Headers],[Октомври]]&_ГОДИНА),Други[Дата на иницииране на искането за чек],\"<=\"&M$4)","v":{"v":0,"d":"0.00 лв."}},{"$f":"SUMIFS(РазбивкаРазходи[Сума на чека],РазбивкаРазходи[G/L код],РезюмеМесечниРазходи[[#This Row],[G/L код]],РазбивкаРазходи[Дата на фактура],\">=\"&N$3,РазбивкаРазходи[Дата на фактура],\"<=\"&N$4)+SUMIFS(Други[Сума на чека],Други[G/L код],РезюмеМесечниРазходи[[#This Row],[G/L код]],Други[Дата на иницииране на искането за чек],\">=\"&DATEVALUE(\"1.\"&РезюмеМесечниРазходи[[#Headers],[Ноември]]&_ГОДИНА),Други[Дата на иницииране на искането за чек],\"<=\"&N$4)","v":{"v":0,"d":"0.00 лв."}},{"$f":"SUMIFS(РазбивкаРазходи[Сума на чека],РазбивкаРазходи[G/L код],РезюмеМесечниРазходи[[#This Row],[G/L код]],РазбивкаРазходи[Дата на фактура],\">=\"&O$3,РазбивкаРазходи[Дата на фактура],\"<=\"&O$4)+SUMIFS(Други[Сума на чека],Други[G/L код],РезюмеМесечниРазходи[[#This Row],[G/L код]],Други[Дата на иницииране на искането за чек],\">=\"&DATEVALUE(\"1.\"&РезюмеМесечниРазходи[[#Headers],[Декември]]&_ГОДИНА),Други[Дата на иницииране на искането за чек],\"<=\"&O$4)","v":{"v":0,"d":"0.00 лв."}},{"$f":"SUM(РезюмеМесечниРазходи[[#This Row],[Януари]:[Декември]])","v":{"v":0,"d":"0.00 лв."}}]
[null,10000,"Маркетинг",{"$f":"SUMIFS(РазбивкаРазходи[Сума на чека],РазбивкаРазходи[G/L код],РезюмеМесечниРазходи[[#This Row],[G/L код]],РазбивкаРазходи[Дата на фактура],\">=\"&D$3,РазбивкаРазходи[Дата на фактура],\"<=\"&D$4)+SUMIFS(Други[Сума на чека],Други[G/L код],РезюмеМесечниРазходи[[#This Row],[G/L код]],Други[Дата на иницииране на искането за чек],\">=\"&DATEVALUE(РезюмеМесечниРазходи[[#Headers],[Януари]]&_ГОДИНА),Други[Дата на иницииране на искането за чек],\"<=\"&D$4)","v":{"v":0,"d":"0.00 лв."}},{"$f":"SUMIFS(РазбивкаРазходи[Сума на чека],РазбивкаРазходи[G/L код],РезюмеМесечниРазходи[[#This Row],[G/L код]],РазбивкаРазходи[Дата на фактура],\">=\"&E$3,РазбивкаРазходи[Дата на фактура],\"<=\"&E$4)+SUMIFS(Други[Сума на чека],Други[G/L код],РезюмеМесечниРазходи[[#This Row],[G/L код]],Други[Дата на иницииране на искането за чек],\">=\"&DATEVALUE(\"1.\"&РезюмеМесечниРазходи[[#Headers],[Февруари]]&_ГОДИНА),Други[Дата на иницииране на искането за чек],\"<=\"&E$4)","v":{"v":0,"d":"0.00 лв."}},{"$f":"SUMIFS(РазбивкаРазходи[Сума на чека],РазбивкаРазходи[G/L код],РезюмеМесечниРазходи[[#This Row],[G/L код]],РазбивкаРазходи[Дата на фактура],\">=\"&F$3,РазбивкаРазходи[Дата на фактура],\"<=\"&F$4)+SUMIFS(Други[Сума на чека],Други[G/L код],РезюмеМесечниРазходи[[#This Row],[G/L код]],Други[Дата на иницииране на искането за чек],\">=\"&DATEVALUE(\"1.\"&РезюмеМесечниРазходи[[#Headers],[Март]]&_ГОДИНА),Други[Дата на иницииране на искането за чек],\"<=\"&F$4)","v":{"v":0,"d":"0.00 лв."}},{"$f":"SUMIFS(РазбивкаРазходи[Сума на чека],РазбивкаРазходи[G/L код],РезюмеМесечниРазходи[[#This Row],[G/L код]],РазбивкаРазходи[Дата на фактура],\">=\"&G$3,РазбивкаРазходи[Дата на фактура],\"<=\"&G$4)+SUMIFS(Други[Сума на чека],Други[G/L код],РезюмеМесечниРазходи[[#This Row],[G/L код]],Други[Дата на иницииране на искането за чек],\">=\"&DATEVALUE(\"1.\"&РезюмеМесечниРазходи[[#Headers],[Април]]&_ГОДИНА),Други[Дата на иницииране на искането за чек],\"<=\"&G$4)","v":{"v":0,"d":"0.00 лв."}},{"$f":"SUMIFS(РазбивкаРазходи[Сума на чека],РазбивкаРазходи[G/L код],РезюмеМесечниРазходи[[#This Row],[G/L код]],РазбивкаРазходи[Дата на фактура],\">=\"&H$3,РазбивкаРазходи[Дата на фактура],\"<=\"&H$4)+SUMIFS(Други[Сума на чека],Други[G/L код],РезюмеМесечниРазходи[[#This Row],[G/L код]],Други[Дата на иницииране на искането за чек],\">=\"&DATEVALUE(\"1.\"&РезюмеМесечниРазходи[[#Headers],[Май]]&_ГОДИНА),Други[Дата на иницииране на искането за чек],\"<=\"&H$4)","v":{"v":0,"d":"0.00 лв."}},{"$f":"SUMIFS(РазбивкаРазходи[Сума на чека],РазбивкаРазходи[G/L код],РезюмеМесечниРазходи[[#This Row],[G/L код]],РазбивкаРазходи[Дата на фактура],\">=\"&I$3,РазбивкаРазходи[Дата на фактура],\"<=\"&I$4)+SUMIFS(Други[Сума на чека],Други[G/L код],РезюмеМесечниРазходи[[#This Row],[G/L код]],Други[Дата на иницииране на искането за чек],\">=\"&DATEVALUE(\"1.\"&РезюмеМесечниРазходи[[#Headers],[Юни]]&_ГОДИНА),Други[Дата на иницииране на искането за чек],\"<=\"&I$4)","v":{"v":0,"d":"0.00 лв."}},{"$f":"SUMIFS(РазбивкаРазходи[Сума на чека],РазбивкаРазходи[G/L код],РезюмеМесечниРазходи[[#This Row],[G/L код]],РазбивкаРазходи[Дата на фактура],\">=\"&J$3,РазбивкаРазходи[Дата на фактура],\"<=\"&J$4)+SUMIFS(Други[Сума на чека],Други[G/L код],РезюмеМесечниРазходи[[#This Row],[G/L код]],Други[Дата на иницииране на искането за чек],\">=\"&DATEVALUE(\"1.\"&РезюмеМесечниРазходи[[#Headers],[Юли]]&_ГОДИНА),Други[Дата на иницииране на искането за чек],\"<=\"&J$4)","v":{"v":0,"d":"0.00 лв."}},{"$f":"SUMIFS(РазбивкаРазходи[Сума на чека],РазбивкаРазходи[G/L код],РезюмеМесечниРазходи[[#This Row],[G/L код]],РазбивкаРазходи[Дата на фактура],\">=\"&K$3,РазбивкаРазходи[Дата на фактура],\"<=\"&K$4)+SUMIFS(Други[Сума на чека],Други[G/L код],РезюмеМесечниРазходи[[#This Row],[G/L код]],Други[Дата на иницииране на искането за чек],\">=\"&DATEVALUE(\"1.\"&РезюмеМесечниРазходи[[#Headers],[Август]]&_ГОДИНА),Други[Дата на иницииране на искането за чек],\"<=\"&K$4)","v":{"v":0,"d":"0.00 лв."}},{"$f":"SUMIFS(РазбивкаРазходи[Сума на чека],РазбивкаРазходи[G/L код],РезюмеМесечниРазходи[[#This Row],[G/L код]],РазбивкаРазходи[Дата на фактура],\">=\"&L$3,РазбивкаРазходи[Дата на фактура],\"<=\"&L$4)+SUMIFS(Други[Сума на чека],Други[G/L код],РезюмеМесечниРазходи[[#This Row],[G/L код]],Други[Дата на иницииране на искането за чек],\">=\"&DATEVALUE(\"1.\"&РезюмеМесечниРазходи[[#Headers],[Септември]]&_ГОДИНА),Други[Дата на иницииране на искането за чек],\"<=\"&L$4)","v":{"v":0,"d":"0.00 лв."}},{"$f":"SUMIFS(РазбивкаРазходи[Сума на чека],РазбивкаРазходи[G/L код],РезюмеМесечниРазходи[[#This Row],[G/L код]],РазбивкаРазходи[Дата на фактура],\">=\"&M$3,РазбивкаРазходи[Дата на фактура],\"<=\"&M$4)+SUMIFS(Други[Сума на чека],Други[G/L код],РезюмеМесечниРазходи[[#This Row],[G/L код]],Други[Дата на иницииране на искането за чек],\">=\"&DATEVALUE(\"1.\"&РезюмеМесечниРазходи[[#Headers],[Октомври]]&_ГОДИНА),Други[Дата на иницииране на искането за чек],\"<=\"&M$4)","v":{"v":0,"d":"0.00 лв."}},{"$f":"SUMIFS(РазбивкаРазходи[Сума на чека],РазбивкаРазходи[G/L код],РезюмеМесечниРазходи[[#This Row],[G/L код]],РазбивкаРазходи[Дата на фактура],\">=\"&N$3,РазбивкаРазходи[Дата на фактура],\"<=\"&N$4)+SUMIFS(Други[Сума на чека],Други[G/L код],РезюмеМесечниРазходи[[#This Row],[G/L код]],Други[Дата на иницииране на искането за чек],\">=\"&DATEVALUE(\"1.\"&РезюмеМесечниРазходи[[#Headers],[Ноември]]&_ГОДИНА),Други[Дата на иницииране на искането за чек],\"<=\"&N$4)","v":{"v":0,"d":"0.00 лв."}},{"$f":"SUMIFS(РазбивкаРазходи[Сума на чека],РазбивкаРазходи[G/L код],РезюмеМесечниРазходи[[#This Row],[G/L код]],РазбивкаРазходи[Дата на фактура],\">=\"&O$3,РазбивкаРазходи[Дата на фактура],\"<=\"&O$4)+SUMIFS(Други[Сума на чека],Други[G/L код],РезюмеМесечниРазходи[[#This Row],[G/L код]],Други[Дата на иницииране на искането за чек],\">=\"&DATEVALUE(\"1.\"&РезюмеМесечниРазходи[[#Headers],[Декември]]&_ГОДИНА),Други[Дата на иницииране на искането за чек],\"<=\"&O$4)","v":{"v":0,"d":"0.00 лв."}},{"$f":"SUM(РезюмеМесечниРазходи[[#This Row],[Януари]:[Декември]])","v":{"v":0,"d":"0.00 лв."}}]
[null,11000,"Дарения",{"$f":"SUMIFS(РазбивкаРазходи[Сума на чека],РазбивкаРазходи[G/L код],РезюмеМесечниРазходи[[#This Row],[G/L код]],РазбивкаРазходи[Дата на фактура],\">=\"&D$3,РазбивкаРазходи[Дата на фактура],\"<=\"&D$4)+SUMIFS(Други[Сума на чека],Други[G/L код],РезюмеМесечниРазходи[[#This Row],[G/L код]],Други[Дата на иницииране на искането за чек],\">=\"&DATEVALUE(РезюмеМесечниРазходи[[#Headers],[Януари]]&_ГОДИНА),Други[Дата на иницииране на искането за чек],\"<=\"&D$4)","v":{"v":0,"d":"0.00 лв."}},{"$f":"SUMIFS(РазбивкаРазходи[Сума на чека],РазбивкаРазходи[G/L код],РезюмеМесечниРазходи[[#This Row],[G/L код]],РазбивкаРазходи[Дата на фактура],\">=\"&E$3,РазбивкаРазходи[Дата на фактура],\"<=\"&E$4)+SUMIFS(Други[Сума на чека],Други[G/L код],РезюмеМесечниРазходи[[#This Row],[G/L код]],Други[Дата на иницииране на искането за чек],\">=\"&DATEVALUE(\"1.\"&РезюмеМесечниРазходи[[#Headers],[Февруари]]&_ГОДИНА),Други[Дата на иницииране на искането за чек],\"<=\"&E$4)","v":{"v":0,"d":"0.00 лв."}},{"$f":"SUMIFS(РазбивкаРазходи[Сума на чека],РазбивкаРазходи[G/L код],РезюмеМесечниРазходи[[#This Row],[G/L код]],РазбивкаРазходи[Дата на фактура],\">=\"&F$3,РазбивкаРазходи[Дата на фактура],\"<=\"&F$4)+SUMIFS(Други[Сума на чека],Други[G/L код],РезюмеМесечниРазходи[[#This Row],[G/L код]],Други[Дата на иницииране на искането за чек],\">=\"&DATEVALUE(\"1.\"&РезюмеМесечниРазходи[[#Headers],[Март]]&_ГОДИНА),Други[Дата на иницииране на искането за чек],\"<=\"&F$4)","v":{"v":0,"d":"0.00 лв."}},{"$f":"SUMIFS(РазбивкаРазходи[Сума на чека],РазбивкаРазходи[G/L код],РезюмеМесечниРазходи[[#This Row],[G/L код]],РазбивкаРазходи[Дата на фактура],\">=\"&G$3,РазбивкаРазходи[Дата на фактура],\"<=\"&G$4)+SUMIFS(Други[Сума на чека],Други[G/L код],РезюмеМесечниРазходи[[#This Row],[G/L код]],Други[Дата на иницииране на искането за чек],\">=\"&DATEVALUE(\"1.\"&РезюмеМесечниРазходи[[#Headers],[Април]]&_ГОДИНА),Други[Дата на иницииране на искането за чек],\"<=\"&G$4)","v":{"v":0,"d":"0.00 лв."}},{"$f":"SUMIFS(РазбивкаРазходи[Сума на чека],РазбивкаРазходи[G/L код],РезюмеМесечниРазходи[[#This Row],[G/L код]],РазбивкаРазходи[Дата на фактура],\">=\"&H$3,РазбивкаРазходи[Дата на фактура],\"<=\"&H$4)+SUMIFS(Други[Сума на чека],Други[G/L код],РезюмеМесечниРазходи[[#This Row],[G/L код]],Други[Дата на иницииране на искането за чек],\">=\"&DATEVALUE(\"1.\"&РезюмеМесечниРазходи[[#Headers],[Май]]&_ГОДИНА),Други[Дата на иницииране на искането за чек],\"<=\"&H$4)","v":{"v":0,"d":"0.00 лв."}},{"$f":"SUMIFS(РазбивкаРазходи[Сума на чека],РазбивкаРазходи[G/L код],РезюмеМесечниРазходи[[#This Row],[G/L код]],РазбивкаРазходи[Дата на фактура],\">=\"&I$3,РазбивкаРазходи[Дата на фактура],\"<=\"&I$4)+SUMIFS(Други[Сума на чека],Други[G/L код],РезюмеМесечниРазходи[[#This Row],[G/L код]],Други[Дата на иницииране на искането за чек],\">=\"&DATEVALUE(\"1.\"&РезюмеМесечниРазходи[[#Headers],[Юни]]&_ГОДИНА),Други[Дата на иницииране на искането за чек],\"<=\"&I$4)","v":{"v":0,"d":"0.00 лв."}},{"$f":"SUMIFS(РазбивкаРазходи[Сума на чека],РазбивкаРазходи[G/L код],РезюмеМесечниРазходи[[#This Row],[G/L код]],РазбивкаРазходи[Дата на фактура],\">=\"&J$3,РазбивкаРазходи[Дата на фактура],\"<=\"&J$4)+SUMIFS(Други[Сума на чека],Други[G/L код],РезюмеМесечниРазходи[[#This Row],[G/L код]],Други[Дата на иницииране на искането за чек],\">=\"&DATEVALUE(\"1.\"&РезюмеМесечниРазходи[[#Headers],[Юли]]&_ГОДИНА),Други[Дата на иницииране на искането за чек],\"<=\"&J$4)","v":{"v":0,"d":"0.00 лв."}},{"$f":"SUMIFS(РазбивкаРазходи[Сума на чека],РазбивкаРазходи[G/L код],РезюмеМесечниРазходи[[#This Row],[G/L код]],РазбивкаРазходи[Дата на фактура],\">=\"&K$3,РазбивкаРазходи[Дата на фактура],\"<=\"&K$4)+SUMIFS(Други[Сума на чека],Други[G/L код],РезюмеМесечниРазходи[[#This Row],[G/L код]],Други[Дата на иницииране на искането за чек],\">=\"&DATEVALUE(\"1.\"&РезюмеМесечниРазходи[[#Headers],[Август]]&_ГОДИНА),Други[Дата на иницииране на искането за чек],\"<=\"&K$4)","v":{"v":0,"d":"0.00 лв."}},{"$f":"SUMIFS(РазбивкаРазходи[Сума на чека],РазбивкаРазходи[G/L код],РезюмеМесечниРазходи[[#This Row],[G/L код]],РазбивкаРазходи[Дата на фактура],\">=\"&L$3,РазбивкаРазходи[Дата на фактура],\"<=\"&L$4)+SUMIFS(Други[Сума на чека],Други[G/L код],РезюмеМесечниРазходи[[#This Row],[G/L код]],Други[Дата на иницииране на искането за чек],\">=\"&DATEVALUE(\"1.\"&РезюмеМесечниРазходи[[#Headers],[Септември]]&_ГОДИНА),Други[Дата на иницииране на искането за чек],\"<=\"&L$4)","v":{"v":0,"d":"0.00 лв."}},{"$f":"SUMIFS(РазбивкаРазходи[Сума на чека],РазбивкаРазходи[G/L код],РезюмеМесечниРазходи[[#This Row],[G/L код]],РазбивкаРазходи[Дата на фактура],\">=\"&M$3,РазбивкаРазходи[Дата на фактура],\"<=\"&M$4)+SUMIFS(Други[Сума на чека],Други[G/L код],РезюмеМесечниРазходи[[#This Row],[G/L код]],Други[Дата на иницииране на искането за чек],\">=\"&DATEVALUE(\"1.\"&РезюмеМесечниРазходи[[#Headers],[Октомври]]&_ГОДИНА),Други[Дата на иницииране на искането за чек],\"<=\"&M$4)","v":{"v":0,"d":"0.00 лв."}},{"$f":"SUMIFS(РазбивкаРазходи[Сума на чека],РазбивкаРазходи[G/L код],РезюмеМесечниРазходи[[#This Row],[G/L код]],РазбивкаРазходи[Дата на фактура],\">=\"&N$3,РазбивкаРазходи[Дата на фактура],\"<=\"&N$4)+SUMIFS(Други[Сума на чека],Други[G/L код],РезюмеМесечниРазходи[[#This Row],[G/L код]],Други[Дата на иницииране на искането за чек],\">=\"&DATEVALUE(\"1.\"&РезюмеМесечниРазходи[[#Headers],[Ноември]]&_ГОДИНА),Други[Дата на иницииране на искането за чек],\"<=\"&N$4)","v":{"v":0,"d":"0.00 лв."}},{"$f":"SUMIFS(РазбивкаРазходи[Сума на чека],РазбивкаРазходи[G/L код],РезюмеМесечниРазходи[[#This Row],[G/L код]],РазбивкаРазходи[Дата на фактура],\">=\"&O$3,РазбивкаРазходи[Дата на фактура],\"<=\"&O$4)+SUMIFS(Други[Сума на чека],Други[G/L код],РезюмеМесечниРазходи[[#This Row],[G/L код]],Други[Дата на иницииране на искането за чек],\">=\"&DATEVALUE(\"1.\"&РезюмеМесечниРазходи[[#Headers],[Декември]]&_ГОДИНА),Други[Дата на иницииране на искането за чек],\"<=\"&O$4)","v":{"v":0,"d":"0.00 лв."}},{"$f":"SUM(РезюмеМесечниРазходи[[#This Row],[Януари]:[Декември]])","v":{"v":0,"d":"0.00 лв."}}]
[null,12000,"Спонсорства",{"$f":"SUMIFS(РазбивкаРазходи[Сума на чека],РазбивкаРазходи[G/L код],РезюмеМесечниРазходи[[#This Row],[G/L код]],РазбивкаРазходи[Дата на фактура],\">=\"&D$3,РазбивкаРазходи[Дата на фактура],\"<=\"&D$4)+SUMIFS(Други[Сума на чека],Други[G/L код],РезюмеМесечниРазходи[[#This Row],[G/L код]],Други[Дата на иницииране на искането за чек],\">=\"&DATEVALUE(РезюмеМесечниРазходи[[#Headers],[Януари]]&_ГОДИНА),Други[Дата на иницииране на искането за чек],\"<=\"&D$4)","v":{"v":0,"d":"0.00 лв."}},{"$f":"SUMIFS(РазбивкаРазходи[Сума на чека],РазбивкаРазходи[G/L код],РезюмеМесечниРазходи[[#This Row],[G/L код]],РазбивкаРазходи[Дата на фактура],\">=\"&E$3,РазбивкаРазходи[Дата на фактура],\"<=\"&E$4)+SUMIFS(Други[Сума на чека],Други[G/L код],РезюмеМесечниРазходи[[#This Row],[G/L код]],Други[Дата на иницииране на искането за чек],\">=\"&DATEVALUE(\"1.\"&РезюмеМесечниРазходи[[#Headers],[Февруари]]&_ГОДИНА),Други[Дата на иницииране на искането за чек],\"<=\"&E$4)","v":{"v":0,"d":"0.00 лв."}},{"$f":"SUMIFS(РазбивкаРазходи[Сума на чека],РазбивкаРазходи[G/L код],РезюмеМесечниРазходи[[#This Row],[G/L код]],РазбивкаРазходи[Дата на фактура],\">=\"&F$3,РазбивкаРазходи[Дата на фактура],\"<=\"&F$4)+SUMIFS(Други[Сума на чека],Други[G/L код],РезюмеМесечниРазходи[[#This Row],[G/L код]],Други[Дата на иницииране на искането за чек],\">=\"&DATEVALUE(\"1.\"&РезюмеМесечниРазходи[[#Headers],[Март]]&_ГОДИНА),Други[Дата на иницииране на искането за чек],\"<=\"&F$4)","v":{"v":0,"d":"0.00 лв."}},{"$f":"SUMIFS(РазбивкаРазходи[Сума на чека],РазбивкаРазходи[G/L код],РезюмеМесечниРазходи[[#This Row],[G/L код]],РазбивкаРазходи[Дата на фактура],\">=\"&G$3,РазбивкаРазходи[Дата на фактура],\"<=\"&G$4)+SUMIFS(Други[Сума на чека],Други[G/L код],РезюмеМесечниРазходи[[#This Row],[G/L код]],Други[Дата на иницииране на искането за чек],\">=\"&DATEVALUE(\"1.\"&РезюмеМесечниРазходи[[#Headers],[Април]]&_ГОДИНА),Други[Дата на иницииране на искането за чек],\"<=\"&G$4)","v":{"v":0,"d":"0.00 лв."}},{"$f":"SUMIFS(РазбивкаРазходи[Сума на чека],РазбивкаРазходи[G/L код],РезюмеМесечниРазходи[[#This Row],[G/L код]],РазбивкаРазходи[Дата на фактура],\">=\"&H$3,РазбивкаРазходи[Дата на фактура],\"<=\"&H$4)+SUMIFS(Други[Сума на чека],Други[G/L код],РезюмеМесечниРазходи[[#This Row],[G/L код]],Други[Дата на иницииране на искането за чек],\">=\"&DATEVALUE(\"1.\"&РезюмеМесечниРазходи[[#Headers],[Май]]&_ГОДИНА),Други[Дата на иницииране на искането за чек],\"<=\"&H$4)","v":{"v":0,"d":"0.00 лв."}},{"$f":"SUMIFS(РазбивкаРазходи[Сума на чека],РазбивкаРазходи[G/L код],РезюмеМесечниРазходи[[#This Row],[G/L код]],РазбивкаРазходи[Дата на фактура],\">=\"&I$3,РазбивкаРазходи[Дата на фактура],\"<=\"&I$4)+SUMIFS(Други[Сума на чека],Други[G/L код],РезюмеМесечниРазходи[[#This Row],[G/L код]],Други[Дата на иницииране на искането за чек],\">=\"&DATEVALUE(\"1.\"&РезюмеМесечниРазходи[[#Headers],[Юни]]&_ГОДИНА),Други[Дата на иницииране на искането за чек],\"<=\"&I$4)","v":{"v":0,"d":"0.00 лв."}},{"$f":"SUMIFS(РазбивкаРазходи[Сума на чека],РазбивкаРазходи[G/L код],РезюмеМесечниРазходи[[#This Row],[G/L код]],РазбивкаРазходи[Дата на фактура],\">=\"&J$3,РазбивкаРазходи[Дата на фактура],\"<=\"&J$4)+SUMIFS(Други[Сума на чека],Други[G/L код],РезюмеМесечниРазходи[[#This Row],[G/L код]],Други[Дата на иницииране на искането за чек],\">=\"&DATEVALUE(\"1.\"&РезюмеМесечниРазходи[[#Headers],[Юли]]&_ГОДИНА),Други[Дата на иницииране на искането за чек],\"<=\"&J$4)","v":{"v":0,"d":"0.00 лв."}},{"$f":"SUMIFS(РазбивкаРазходи[Сума на чека],РазбивкаРазходи[G/L код],РезюмеМесечниРазходи[[#This Row],[G/L код]],РазбивкаРазходи[Дата на фактура],\">=\"&K$3,РазбивкаРазходи[Дата на фактура],\"<=\"&K$4)+SUMIFS(Други[Сума на чека],Други[G/L код],РезюмеМесечниРазходи[[#This Row],[G/L код]],Други[Дата на иницииране на искането за чек],\">=\"&DATEVALUE(\"1.\"&РезюмеМесечниРазходи[[#Headers],[Август]]&_ГОДИНА),Други[Дата на иницииране на искането за чек],\"<=\"&K$4)","v":{"v":0,"d":"0.00 лв."}},{"$f":"SUMIFS(РазбивкаРазходи[Сума на чека],РазбивкаРазходи[G/L код],РезюмеМесечниРазходи[[#This Row],[G/L код]],РазбивкаРазходи[Дата на фактура],\">=\"&L$3,РазбивкаРазходи[Дата на фактура],\"<=\"&L$4)+SUMIFS(Други[Сума на чека],Други[G/L код],РезюмеМесечниРазходи[[#This Row],[G/L код]],Други[Дата на иницииране на искането за чек],\">=\"&DATEVALUE(\"1.\"&РезюмеМесечниРазходи[[#Headers],[Септември]]&_ГОДИНА),Други[Дата на иницииране на искането за чек],\"<=\"&L$4)","v":{"v":0,"d":"0.00 лв."}},{"$f":"SUMIFS(РазбивкаРазходи[Сума на чека],РазбивкаРазходи[G/L код],РезюмеМесечниРазходи[[#This Row],[G/L код]],РазбивкаРазходи[Дата на фактура],\">=\"&M$3,РазбивкаРазходи[Дата на фактура],\"<=\"&M$4)+SUMIFS(Други[Сума на чека],Други[G/L код],РезюмеМесечниРазходи[[#This Row],[G/L код]],Други[Дата на иницииране на искането за чек],\">=\"&DATEVALUE(\"1.\"&РезюмеМесечниРазходи[[#Headers],[Октомври]]&_ГОДИНА),Други[Дата на иницииране на искането за чек],\"<=\"&M$4)","v":{"v":0,"d":"0.00 лв."}},{"$f":"SUMIFS(РазбивкаРазходи[Сума на чека],РазбивкаРазходи[G/L код],РезюмеМесечниРазходи[[#This Row],[G/L код]],РазбивкаРазходи[Дата на фактура],\">=\"&N$3,РазбивкаРазходи[Дата на фактура],\"<=\"&N$4)+SUMIFS(Други[Сума на чека],Други[G/L код],РезюмеМесечниРазходи[[#This Row],[G/L код]],Други[Дата на иницииране на искането за чек],\">=\"&DATEVALUE(\"1.\"&РезюмеМесечниРазходи[[#Headers],[Ноември]]&_ГОДИНА),Други[Дата на иницииране на искането за чек],\"<=\"&N$4)","v":{"v":0,"d":"0.00 лв."}},{"$f":"SUMIFS(РазбивкаРазходи[Сума на чека],РазбивкаРазходи[G/L код],РезюмеМесечниРазходи[[#This Row],[G/L код]],РазбивкаРазходи[Дата на фактура],\">=\"&O$3,РазбивкаРазходи[Дата на фактура],\"<=\"&O$4)+SUMIFS(Други[Сума на чека],Други[G/L код],РезюмеМесечниРазходи[[#This Row],[G/L код]],Други[Дата на иницииране на искането за чек],\">=\"&DATEVALUE(\"1.\"&РезюмеМесечниРазходи[[#Headers],[Декември]]&_ГОДИНА),Други[Дата на иницииране на искането за чек],\"<=\"&O$4)","v":{"v":0,"d":"0.00 лв."}},{"$f":"SUM(РезюмеМесечниРазходи[[#This Row],[Януари]:[Декември]])","v":{"v":0,"d":"0.00 лв."}}]
[null,"Общо",null,{"$f":"SUBTOTAL(109,РезюмеМесечниРазходи[Януари])","v":{"v":0,"d":"0.00 лв."}},{"$f":"SUBTOTAL(109,РезюмеМесечниРазходи[Февруари])","v":{"v":0,"d":"0.00 лв."}},{"$f":"SUBTOTAL(109,РезюмеМесечниРазходи[Март])","v":{"v":0,"d":"0.00 лв."}},{"$f":"SUBTOTAL(109,РезюмеМесечниРазходи[Април])","v":{"v":0,"d":"0.00 лв."}},{"$f":"SUBTOTAL(109,РезюмеМесечниРазходи[Май])","v":{"v":0,"d":"0.00 лв."}},{"$f":"SUBTOTAL(109,РезюмеМесечниРазходи[Юни])","v":{"v":0,"d":"0.00 лв."}},{"$f":"SUBTOTAL(109,РезюмеМесечниРазходи[Юли])","v":{"v":0,"d":"0.00 лв."}},{"$f":"SUBTOTAL(109,РезюмеМесечниРазходи[Август])","v":{"v":0,"d":"0.00 лв."}},{"$f":"SUBTOTAL(109,РезюмеМесечниРазходи[Септември])","v":{"v":0,"d":"0.00 лв."}},{"$f":"SUBTOTAL(109,РезюмеМесечниРазходи[Октомври])","v":{"v":0,"d":"0.00 лв."}},{"$f":"SUBTOTAL(109,РезюмеМесечниРазходи[Ноември])","v":{"v":0,"d":"0.00 лв."}},{"$f":"SUBTOTAL(109,РезюмеМесечниРазходи[Декември])","v":{"v":0,"d":"0.00 лв."}},{"$f":"SUBTOTAL(109,РезюмеМесечниРазходи[Общо])","v":{"v":0,"d":"0.00 лв."}}]

{"sheet":"РАЗБИВКА НА РАЗХОДИТЕ","index":2,"n_rows":6,"n_cols":10,"rows_kept":6,"merged":[[1,1,1,9],[2,1,2,5],[2,6,2,9]]}
[]
[null,"РАЗБИВКА НА РАЗХОДИТЕ"]
[]
[null,"G/L код","Дата на фактура","Фактура №","Поискана от","Сума на чека","Получател","Използване на чека","Метод на разпространение","Дата на подаване"]
[null,1000,"Дата",100,"Явор Костов",{"v":750.75,"d":"750.75 лв."},"Consolidated Messenger ","Машина за адресиране на писма","Поща","Дата"]
[null,7000,"Дата",101,"Вълко Христов",{"v":2500,"d":"2,500.00 лв."},"A. Datum Corporation ","2 настолни компютъра","Кредит","Дата"]

{"sheet":"ДАРЕНИЯ И СПОНСОРСТВА","index":3,"n_rows":6,"n_cols":12,"rows_kept":6,"merged":[[1,1,1,11],[2,1,2,5],[2,6,2,11]]}
[]
[null,"ДАРЕНИЯ И СПОНСОРСТВА"]
[]
[null,"G/L код","Дата на иницииране на искането за чек","Поискана от","Сума на чека","Отчисление за предишната година","Получател","Използва се за","Подписано от:","Категория","Метод на разпространение","Дата на подаване"]
[null,12000,"Дата","Грозда Кацарова",{"v":1000,"d":"1,000.00 лв."},{"v":12,"d":"12.00 лв."},"School of Fine Art ","Стипендии","Богдана Стефанова","Изкуство","Чек","Дата"]
[null,11000,"Дата","Грозда Кацарова",{"v":2500,"d":"2,500.00 лв."},{"v":0,"d":"0.00 лв."},"Wingtip Toys ","Общност","Рада Михайлова","Общност","Чек","Дата"]